Workbook

Sheet cfg_equip_angelEntry
A1: 词条库id | B1: 词条库备注 | C1: 装备词条组 | D1: 属性1 | E1: 词条强化区间 | F1: 词条属性上限 | G1: 词条品质组 | H1: 是否显示数值
A2: 词条id | B2: 策划用 词条库备注 | C2: 组名规范： 主词条：10000+阶数x100+顺序 随机词条：阶数x100+品质 如一阶绿为1x100+1=101 决定装备能随到哪些词条的组 数字相同的归属在同一词条组内 1绿色品质 2蓝色品质 3紫色品质 4金色品质 | D2: 格式：属性id#数值下限#数值上限#权重 权重越高越容易出现，权重影响的是随机到这条属性的几率，不影响属性的数值 引用att_info表id | E2: 数值下限#数值上限#权重 | F2: 该词条的属性最高强化到x 格式 最大值#最大值 | G2: 代表该词条本身的品质 1绿色品质 2蓝色品质 3紫色品质 4金色品质 5棱彩品质 | H2: 1显示 0不显示
A3: int#s#c | B3: string#s | C3: int#s#c | D3: intListList#s#c | E3: intListList#s#c | F3: intlist#s#c | G3: int#s#c | H3: int#c#s
A4: id | B4: name | C4: group | D4: att | E4: strengthen | F4: attMax | G4: attQuality | H4: show
A5: 1 | B5: 无视防御率1 | C5: 101 | D5: 317012#14#14#40 | E5: 6#11#1 | F5: 93 | G5: 1 | H5: 1
A6: 2 | B6: 无视防御率2 | C6: 101 | D6: 317012#28#28#30 | E6: 6#11#1 | F6: 93 | G6: 2 | H6: 1
A7: 3 | B7: 无视防御率1 | C7: 102 | D7: 317012#14#14#40 | E7: 6#11#1 | F7: 93 | G7: 1 | H7: 1
A8: 4 | B8: 无视防御率2 | C8: 102 | D8: 317012#28#28#30 | E8: 6#11#1 | F8: 93 | G8: 2 | H8: 1
A9: 5 | B9: 无视防御率3 | C9: 102 | D9: 317012#42#42#20 | E9: 6#11#1 | F9: 93 | G9: 3 | H9: 1
A10: 6 | B10: 无视防御率2 | C10: 103 | D10: 317012#28#28#30 | E10: 6#11#1 | F10: 93 | G10: 2 | H10: 1
A11: 7 | B11: 无视防御率3 | C11: 103 | D11: 317012#42#42#20 | E11: 6#11#1 | F11: 93 | G11: 3 | H11: 1
A12: 8 | B12: 无视防御率4 | C12: 103 | D12: 317012#51#51#10 | E12: 6#11#1 | F12: 93 | G12: 4 | H12: 1
A13: 9 | B13: 无视防御率4 | C13: 104 | D13: 317012#51#51#10 | E13: 6#11#1 | F13: 93 | G13: 4 | H13: 1
A14: 10 | B14: 抵抗无视防御率1 | C14: 101 | D14: 317022#14#14#40 | E14: 6#11#1 | F14: 93 | G14: 1 | H14: 1
A15: 11 | B15: 抵抗无视防御率2 | C15: 101 | D15: 317022#28#28#30 | E15: 6#11#1 | F15: 93 | G15: 2 | H15: 1
A16: 12 | B16: 抵抗无视防御率1 | C16: 102 | D16: 317022#14#14#40 | E16: 6#11#1 | F16: 93 | G16: 1 | H16: 1
A17: 13 | B17: 抵抗无视防御率2 | C17: 102 | D17: 317022#28#28#30 | E17: 6#11#1 | F17: 93 | G17: 2 | H17: 1
A18: 14 | B18: 抵抗无视防御率3 | C18: 102 | D18: 317022#42#42#20 | E18: 6#11#1 | F18: 93 | G18: 3 | H18: 1
A19: 15 | B19: 抵抗无视防御率2 | C19: 103 | D19: 317022#28#28#30 | E19: 6#11#1 | F19: 93 | G19: 2 | H19: 1
A20: 16 | B20: 抵抗无视防御率3 | C20: 103 | D20: 317022#42#42#20 | E20: 6#11#1 | F20: 93 | G20: 3 | H20: 1
A21: 17 | B21: 抵抗无视防御率4 | C21: 103 | D21: 317022#51#51#10 | E21: 6#11#1 | F21: 93 | G21: 4 | H21: 1
A22: 18 | B22: 抵抗无视防御率4 | C22: 104 | D22: 317022#51#51#10 | E22: 6#11#1 | F22: 93 | G22: 4 | H22: 1
A23: 19 | B23: 双倍增伤1 | C23: 101 | D23: 304042#28#28#40 | E23: 11#22#1 | F23: 185 | G23: 1 | H23: 1
A24: 20 | B24: 双倍增伤2 | C24: 101 | D24: 304042#56#56#30 | E24: 11#22#1 | F24: 185 | G24: 2 | H24: 1
A25: 21 | B25: 双倍增伤1 | C25: 102 | D25: 304042#28#28#40 | E25: 11#22#1 | F25: 185 | G25: 1 | H25: 1
A26: 22 | B26: 双倍增伤2 | C26: 102 | D26: 304042#56#56#30 | E26: 11#22#1 | F26: 185 | G26: 2 | H26: 1
A27: 23 | B27: 双倍增伤3 | C27: 102 | D27: 304042#83#83#20 | E27: 11#22#1 | F27: 185 | G27: 3 | H27: 1
A28: 24 | B28: 双倍增伤2 | C28: 103 | D28: 304042#56#56#30 | E28: 11#22#1 | F28: 185 | G28: 2 | H28: 1
A29: 25 | B29: 双倍增伤3 | C29: 103 | D29: 304042#83#83#20 | E29: 11#22#1 | F29: 185 | G29: 3 | H29: 1
A30: 26 | B30: 双倍增伤4 | C30: 103 | D30: 304042#102#102#10 | E30: 11#22#1 | F30: 185 | G30: 4 | H30: 1
A31: 27 | B31: 双倍增伤4 | C31: 104 | D31: 304042#102#102#10 | E31: 11#22#1 | F31: 185 | G31: 4 | H31: 1
A32: 28 | B32: 卓越增伤1 | C32: 101 | D32: 303042#28#28#40 | E32: 11#22#1 | F32: 185 | G32: 1 | H32: 1
A33: 29 | B33: 卓越增伤2 | C33: 101 | D33: 303042#56#56#30 | E33: 11#22#1 | F33: 185 | G33: 2 | H33: 1
A34: 30 | B34: 卓越增伤1 | C34: 102 | D34: 303042#28#28#40 | E34: 11#22#1 | F34: 185 | G34: 1 | H34: 1
A35: 31 | B35: 卓越增伤2 | C35: 102 | D35: 303042#56#56#30 | E35: 11#22#1 | F35: 185 | G35: 2 | H35: 1
A36: 32 | B36: 卓越增伤3 | C36: 102 | D36: 303042#83#83#20 | E36: 11#22#1 | F36: 185 | G36: 3 | H36: 1
A37: 33 | B37: 卓越增伤2 | C37: 103 | D37: 303042#56#56#30 | E37: 11#22#1 | F37: 185 | G37: 2 | H37: 1
A38: 34 | B38: 卓越增伤3 | C38: 103 | D38: 303042#83#83#20 | E38: 11#22#1 | F38: 185 | G38: 3 | H38: 1
A39: 35 | B39: 卓越增伤4 | C39: 103 | D39: 303042#102#102#10 | E39: 11#22#1 | F39: 185 | G39: 4 | H39: 1
A40: 36 | B40: 卓越增伤4 | C40: 104 | D40: 303042#102#102#10 | E40: 11#22#1 | F40: 185 | G40: 4 | H40: 1
A41: 37 | B41: 幸运增伤1 | C41: 101 | D41: 305042#28#28#40 | E41: 11#22#1 | F41: 185 | G41: 1 | H41: 1
A42: 38 | B42: 幸运增伤2 | C42: 101 | D42: 305042#56#56#30 | E42: 11#22#1 | F42: 185 | G42: 2 | H42: 1
A43: 39 | B43: 幸运增伤1 | C43: 102 | D43: 305042#28#28#40 | E43: 11#22#1 | F43: 185 | G43: 1 | H43: 1
A44: 40 | B44: 幸运增伤2 | C44: 102 | D44: 305042#56#56#30 | E44: 11#22#1 | F44: 185 | G44: 2 | H44: 1
A45: 41 | B45: 幸运增伤3 | C45: 102 | D45: 305042#83#83#20 | E45: 11#22#1 | F45: 185 | G45: 3 | H45: 1
A46: 42 | B46: 幸运增伤2 | C46: 103 | D46: 305042#56#56#30 | E46: 11#22#1 | F46: 185 | G46: 2 | H46: 1
A47: 43 | B47: 幸运增伤3 | C47: 103 | D47: 305042#83#83#20 | E47: 11#22#1 | F47: 185 | G47: 3 | H47: 1
A48: 44 | B48: 幸运增伤4 | C48: 103 | D48: 305042#102#102#10 | E48: 11#22#1 | F48: 185 | G48: 4 | H48: 1
A49: 45 | B49: 幸运增伤4 | C49: 104 | D49: 305042#102#102#10 | E49: 11#22#1 | F49: 185 | G49: 4 | H49: 1
A50: 46 | B50: 双倍减免1 | C50: 101 | D50: 304062#28#28#40 | E50: 11#22#1 | F50: 185 | G50: 1 | H50: 1
A51: 47 | B51: 双倍减免2 | C51: 101 | D51: 304062#56#56#30 | E51: 11#22#1 | F51: 185 | G51: 2 | H51: 1
A52: 48 | B52: 双倍减免1 | C52: 102 | D52: 304062#28#28#40 | E52: 11#22#1 | F52: 185 | G52: 1 | H52: 1
A53: 49 | B53: 双倍减免2 | C53: 102 | D53: 304062#56#56#30 | E53: 11#22#1 | F53: 185 | G53: 2 | H53: 1
A54: 50 | B54: 双倍减免3 | C54: 102 | D54: 304062#83#83#20 | E54: 11#22#1 | F54: 185 | G54: 3 | H54: 1
A55: 51 | B55: 双倍减免2 | C55: 103 | D55: 304062#56#56#30 | E55: 11#22#1 | F55: 185 | G55: 2 | H55: 1
A56: 52 | B56: 双倍减免3 | C56: 103 | D56: 304062#83#83#20 | E56: 11#22#1 | F56: 185 | G56: 3 | H56: 1
A57: 53 | B57: 双倍减免4 | C57: 103 | D57: 304062#102#102#10 | E57: 11#22#1 | F57: 185 | G57: 4 | H57: 1
A58: 54 | B58: 双倍减免4 | C58: 104 | D58: 304062#102#102#10 | E58: 11#22#1 | F58: 185 | G58: 4 | H58: 1
A59: 55 | B59: 卓越减免1 | C59: 101 | D59: 303062#28#28#40 | E59: 11#22#1 | F59: 185 | G59: 1 | H59: 1
A60: 56 | B60: 卓越减免2 | C60: 101 | D60: 303062#56#56#30 | E60: 11#22#1 | F60: 185 | G60: 2 | H60: 1
A61: 57 | B61: 卓越减免1 | C61: 102 | D61: 303062#28#28#40 | E61: 11#22#1 | F61: 185 | G61: 1 | H61: 1
A62: 58 | B62: 卓越减免2 | C62: 102 | D62: 303062#56#56#30 | E62: 11#22#1 | F62: 185 | G62: 2 | H62: 1
A63: 59 | B63: 卓越减免3 | C63: 102 | D63: 303062#83#83#20 | E63: 11#22#1 | F63: 185 | G63: 3 | H63: 1
A64: 60 | B64: 卓越减免2 | C64: 103 | D64: 303062#56#56#30 | E64: 11#22#1 | F64: 185 | G64: 2 | H64: 1
A65: 61 | B65: 卓越减免3 | C65: 103 | D65: 303062#83#83#20 | E65: 11#22#1 | F65: 185 | G65: 3 | H65: 1
A66: 62 | B66: 卓越减免4 | C66: 103 | D66: 303062#102#102#10 | E66: 11#22#1 | F66: 185 | G66: 4 | H66: 1
A67: 63 | B67: 卓越减免4 | C67: 104 | D67: 303062#102#102#10 | E67: 11#22#1 | F67: 185 | G67: 4 | H67: 1
A68: 64 | B68: 幸运减免1 | C68: 101 | D68: 305062#28#28#40 | E68: 11#22#1 | F68: 185 | G68: 1 | H68: 1
A69: 65 | B69: 幸运减免2 | C69: 101 | D69: 305062#56#56#30 | E69: 11#22#1 | F69: 185 | G69: 2 | H69: 1
A70: 66 | B70: 幸运减免1 | C70: 102 | D70: 305062#28#28#40 | E70: 11#22#1 | F70: 185 | G70: 1 | H70: 1
A71: 67 | B71: 幸运减免2 | C71: 102 | D71: 305062#56#56#30 | E71: 11#22#1 | F71: 185 | G71: 2 | H71: 1
A72: 68 | B72: 幸运减免3 | C72: 102 | D72: 305062#83#83#20 | E72: 11#22#1 | F72: 185 | G72: 3 | H72: 1
A73: 69 | B73: 幸运减免2 | C73: 103 | D73: 305062#56#56#30 | E73: 11#22#1 | F73: 185 | G73: 2 | H73: 1
A74: 70 | B74: 幸运减免3 | C74: 103 | D74: 305062#83#83#20 | E74: 11#22#1 | F74: 185 | G74: 3 | H74: 1
A75: 71 | B75: 幸运减免4 | C75: 103 | D75: 305062#102#102#10 | E75: 11#22#1 | F75: 185 | G75: 4 | H75: 1
A76: 72 | B76: 幸运减免4 | C76: 104 | D76: 305062#102#102#10 | E76: 11#22#1 | F76: 185 | G76: 4 | H76: 1
A77: 73 | B77: PVP增伤1 | C77: 101 | D77: 311212#28#28#60 | E77: 11#22#1 | F77: 185 | G77: 1 | H77: 1
A78: 74 | B78: PVP增伤2 | C78: 101 | D78: 311212#56#56#45 | E78: 11#22#1 | F78: 185 | G78: 2 | H78: 1
A79: 75 | B79: PVP增伤1 | C79: 102 | D79: 311212#28#28#60 | E79: 11#22#1 | F79: 185 | G79: 1 | H79: 1
A80: 76 | B80: PVP增伤2 | C80: 102 | D80: 311212#56#56#45 | E80: 11#22#1 | F80: 185 | G80: 2 | H80: 1
A81: 77 | B81: PVP增伤3 | C81: 102 | D81: 311212#83#83#30 | E81: 11#22#1 | F81: 185 | G81: 3 | H81: 1
A82: 78 | B82: PVP增伤2 | C82: 103 | D82: 311212#56#56#45 | E82: 11#22#1 | F82: 185 | G82: 2 | H82: 1
A83: 79 | B83: PVP增伤3 | C83: 103 | D83: 311212#83#83#30 | E83: 11#22#1 | F83: 185 | G83: 3 | H83: 1
A84: 80 | B84: PVP增伤4 | C84: 103 | D84: 311212#102#102#15 | E84: 11#22#1 | F84: 185 | G84: 4 | H84: 1
A85: 81 | B85: PVP增伤4 | C85: 104 | D85: 311212#102#102#15 | E85: 11#22#1 | F85: 185 | G85: 4 | H85: 1
A86: 82 | B86: PVP减伤1 | C86: 101 | D86: 312212#28#28#60 | E86: 11#22#1 | F86: 185 | G86: 1 | H86: 1
A87: 83 | B87: PVP减伤2 | C87: 101 | D87: 312212#56#56#45 | E87: 11#22#1 | F87: 185 | G87: 2 | H87: 1
A88: 84 | B88: PVP减伤1 | C88: 102 | D88: 312212#28#28#60 | E88: 11#22#1 | F88: 185 | G88: 1 | H88: 1
A89: 85 | B89: PVP减伤2 | C89: 102 | D89: 312212#56#56#45 | E89: 11#22#1 | F89: 185 | G89: 2 | H89: 1
A90: 86 | B90: PVP减伤3 | C90: 102 | D90: 312212#83#83#30 | E90: 11#22#1 | F90: 185 | G90: 3 | H90: 1
A91: 87 | B91: PVP减伤2 | C91: 103 | D91: 312212#56#56#45 | E91: 11#22#1 | F91: 185 | G91: 2 | H91: 1
A92: 88 | B92: PVP减伤3 | C92: 103 | D92: 312212#83#83#30 | E92: 11#22#1 | F92: 185 | G92: 3 | H92: 1
A93: 89 | B93: PVP减伤4 | C93: 103 | D93: 312212#102#102#15 | E93: 11#22#1 | F93: 185 | G93: 4 | H93: 1
A94: 90 | B94: PVP减伤4 | C94: 104 | D94: 312212#102#102#15 | E94: 11#22#1 | F94: 185 | G94: 4 | H94: 1
A95: 91 | B95: A元素伤害加成1 | C95: 101 | D95: 333022#46#46#100 | E95: 19#37#1 | F95: 309 | G95: 1 | H95: 1
A96: 92 | B96: A元素伤害加成2 | C96: 101 | D96: 333022#93#93#75 | E96: 19#37#1 | F96: 309 | G96: 2 | H96: 1
A97: 93 | B97: A元素伤害加成1 | C97: 102 | D97: 333022#46#46#100 | E97: 19#37#1 | F97: 309 | G97: 1 | H97: 1
A98: 94 | B98: A元素伤害加成2 | C98: 102 | D98: 333022#93#93#75 | E98: 19#37#1 | F98: 309 | G98: 2 | H98: 1
A99: 95 | B99: A元素伤害加成3 | C99: 102 | D99: 333022#139#139#50 | E99: 19#37#1 | F99: 309 | G99: 3 | H99: 1
A100: 96 | B100: A元素伤害加成2 | C100: 103 | D100: 333022#93#93#75 | E100: 19#37#1 | F100: 309 | G100: 2 | H100: 1
A101: 97 | B101: A元素伤害加成3 | C101: 103 | D101: 333022#139#139#50 | E101: 19#37#1 | F101: 309 | G101: 3 | H101: 1
A102: 98 | B102: A元素伤害加成4 | C102: 103 | D102: 333022#170#170#25 | E102: 19#37#1 | F102: 309 | G102: 4 | H102: 1
A103: 99 | B103: A元素伤害加成4 | C103: 104 | D103: 333022#170#170#25 | E103: 19#37#1 | F103: 309 | G103: 4 | H103: 1
A104: 100 | B104: B元素伤害加成1 | C104: 101 | D104: 334022#46#46#100 | E104: 19#37#1 | F104: 309 | G104: 1 | H104: 1
A105: 101 | B105: B元素伤害加成2 | C105: 101 | D105: 334022#93#93#75 | E105: 19#37#1 | F105: 309 | G105: 2 | H105: 1
A106: 102 | B106: B元素伤害加成1 | C106: 102 | D106: 334022#46#46#100 | E106: 19#37#1 | F106: 309 | G106: 1 | H106: 1
A107: 103 | B107: B元素伤害加成2 | C107: 102 | D107: 334022#93#93#75 | E107: 19#37#1 | F107: 309 | G107: 2 | H107: 1
A108: 104 | B108: B元素伤害加成3 | C108: 102 | D108: 334022#139#139#50 | E108: 19#37#1 | F108: 309 | G108: 3 | H108: 1
A109: 105 | B109: B元素伤害加成2 | C109: 103 | D109: 334022#93#93#75 | E109: 19#37#1 | F109: 309 | G109: 2 | H109: 1
A110: 106 | B110: B元素伤害加成3 | C110: 103 | D110: 334022#139#139#50 | E110: 19#37#1 | F110: 309 | G110: 3 | H110: 1
A111: 107 | B111: B元素伤害加成4 | C111: 103 | D111: 334022#170#170#25 | E111: 19#37#1 | F111: 309 | G111: 4 | H111: 1
A112: 108 | B112: B元素伤害加成4 | C112: 104 | D112: 334022#170#170#25 | E112: 19#37#1 | F112: 309 | G112: 4 | H112: 1
A113: 109 | B113: C元素伤害加成1 | C113: 101 | D113: 335022#46#46#100 | E113: 19#37#1 | F113: 309 | G113: 1 | H113: 1
A114: 110 | B114: C元素伤害加成2 | C114: 101 | D114: 335022#93#93#75 | E114: 19#37#1 | F114: 309 | G114: 2 | H114: 1
A115: 111 | B115: C元素伤害加成1 | C115: 102 | D115: 335022#46#46#100 | E115: 19#37#1 | F115: 309 | G115: 1 | H115: 1
A116: 112 | B116: C元素伤害加成2 | C116: 102 | D116: 335022#93#93#75 | E116: 19#37#1 | F116: 309 | G116: 2 | H116: 1
A117: 113 | B117: C元素伤害加成3 | C117: 102 | D117: 335022#139#139#50 | E117: 19#37#1 | F117: 309 | G117: 3 | H117: 1
A118: 114 | B118: C元素伤害加成2 | C118: 103 | D118: 335022#93#93#75 | E118: 19#37#1 | F118: 309 | G118: 2 | H118: 1
A119: 115 | B119: C元素伤害加成3 | C119: 103 | D119: 335022#139#139#50 | E119: 19#37#1 | F119: 309 | G119: 3 | H119: 1
A120: 116 | B120: C元素伤害加成4 | C120: 103 | D120: 335022#170#170#25 | E120: 19#37#1 | F120: 309 | G120: 4 | H120: 1
A121: 117 | B121: C元素伤害加成4 | C121: 104 | D121: 335022#170#170#25 | E121: 19#37#1 | F121: 309 | G121: 4 | H121: 1
A122: 118 | B122: D元素伤害加成1 | C122: 101 | D122: 336022#46#46#100 | E122: 19#37#1 | F122: 309 | G122: 1 | H122: 1
A123: 119 | B123: D元素伤害加成2 | C123: 101 | D123: 336022#93#93#75 | E123: 19#37#1 | F123: 309 | G123: 2 | H123: 1
A124: 120 | B124: D元素伤害加成1 | C124: 102 | D124: 336022#46#46#100 | E124: 19#37#1 | F124: 309 | G124: 1 | H124: 1
A125: 121 | B125: D元素伤害加成2 | C125: 102 | D125: 336022#93#93#75 | E125: 19#37#1 | F125: 309 | G125: 2 | H125: 1
A126: 122 | B126: D元素伤害加成3 | C126: 102 | D126: 336022#139#139#50 | E126: 19#37#1 | F126: 309 | G126: 3 | H126: 1
A127: 123 | B127: D元素伤害加成2 | C127: 103 | D127: 336022#93#93#75 | E127: 19#37#1 | F127: 309 | G127: 2 | H127: 1
A128: 124 | B128: D元素伤害加成3 | C128: 103 | D128: 336022#139#139#50 | E128: 19#37#1 | F128: 309 | G128: 3 | H128: 1
A129: 125 | B129: D元素伤害加成4 | C129: 103 | D129: 336022#170#170#25 | E129: 19#37#1 | F129: 309 | G129: 4 | H129: 1
A130: 126 | B130: D元素伤害加成4 | C130: 104 | D130: 336022#170#170#25 | E130: 19#37#1 | F130: 309 | G130: 4 | H130: 1
A131: 127 | B131: A元素伤害减免1 | C131: 101 | D131: 333032#46#46#100 | E131: 19#37#1 | F131: 309 | G131: 1 | H131: 1
A132: 128 | B132: A元素伤害减免2 | C132: 101 | D132: 333032#93#93#75 | E132: 19#37#1 | F132: 309 | G132: 2 | H132: 1
A133: 129 | B133: A元素伤害减免1 | C133: 102 | D133: 333032#46#46#100 | E133: 19#37#1 | F133: 309 | G133: 1 | H133: 1
A134: 130 | B134: A元素伤害减免2 | C134: 102 | D134: 333032#93#93#75 | E134: 19#37#1 | F134: 309 | G134: 2 | H134: 1
A135: 131 | B135: A元素伤害减免3 | C135: 102 | D135: 333032#139#139#50 | E135: 19#37#1 | F135: 309 | G135: 3 | H135: 1
A136: 132 | B136: A元素伤害减免2 | C136: 103 | D136: 333032#93#93#75 | E136: 19#37#1 | F136: 309 | G136: 2 | H136: 1
A137: 133 | B137: A元素伤害减免3 | C137: 103 | D137: 333032#139#139#50 | E137: 19#37#1 | F137: 309 | G137: 3 | H137: 1
A138: 134 | B138: A元素伤害减免4 | C138: 103 | D138: 333032#170#170#25 | E138: 19#37#1 | F138: 309 | G138: 4 | H138: 1
A139: 135 | B139: A元素伤害减免4 | C139: 104 | D139: 333032#170#170#25 | E139: 19#37#1 | F139: 309 | G139: 4 | H139: 1
A140: 136 | B140: B元素伤害减免1 | C140: 101 | D140: 334032#46#46#100 | E140: 19#37#1 | F140: 309 | G140: 1 | H140: 1
A141: 137 | B141: B元素伤害减免2 | C141: 101 | D141: 334032#93#93#75 | E141: 19#37#1 | F141: 309 | G141: 2 | H141: 1
A142: 138 | B142: B元素伤害减免1 | C142: 102 | D142: 334032#46#46#100 | E142: 19#37#1 | F142: 309 | G142: 1 | H142: 1
A143: 139 | B143: B元素伤害减免2 | C143: 102 | D143: 334032#93#93#75 | E143: 19#37#1 | F143: 309 | G143: 2 | H143: 1
A144: 140 | B144: B元素伤害减免3 | C144: 102 | D144: 334032#139#139#50 | E144: 19#37#1 | F144: 309 | G144: 3 | H144: 1
A145: 141 | B145: B元素伤害减免2 | C145: 103 | D145: 334032#93#93#75 | E145: 19#37#1 | F145: 309 | G145: 2 | H145: 1
A146: 142 | B146: B元素伤害减免3 | C146: 103 | D146: 334032#139#139#50 | E146: 19#37#1 | F146: 309 | G146: 3 | H146: 1
A147: 143 | B147: B元素伤害减免4 | C147: 103 | D147: 334032#170#170#25 | E147: 19#37#1 | F147: 309 | G147: 4 | H147: 1
A148: 144 | B148: B元素伤害减免4 | C148: 104 | D148: 334032#170#170#25 | E148: 19#37#1 | F148: 309 | G148: 4 | H148: 1
A149: 145 | B149: C元素伤害减免1 | C149: 101 | D149: 335032#46#46#100 | E149: 19#37#1 | F149: 309 | G149: 1 | H149: 1
A150: 146 | B150: C元素伤害减免2 | C150: 101 | D150: 335032#93#93#75 | E150: 19#37#1 | F150: 309 | G150: 2 | H150: 1
A151: 147 | B151: C元素伤害减免1 | C151: 102 | D151: 335032#46#46#100 | E151: 19#37#1 | F151: 309 | G151: 1 | H151: 1
A152: 148 | B152: C元素伤害减免2 | C152: 102 | D152: 335032#93#93#75 | E152: 19#37#1 | F152: 309 | G152: 2 | H152: 1
A153: 149 | B153: C元素伤害减免3 | C153: 102 | D153: 335032#139#139#50 | E153: 19#37#1 | F153: 309 | G153: 3 | H153: 1
A154: 150 | B154: C元素伤害减免2 | C154: 103 | D154: 335032#93#93#75 | E154: 19#37#1 | F154: 309 | G154: 2 | H154: 1
A155: 151 | B155: C元素伤害减免3 | C155: 103 | D155: 335032#139#139#50 | E155: 19#37#1 | F155: 309 | G155: 3 | H155: 1
A156: 152 | B156: C元素伤害减免4 | C156: 103 | D156: 335032#170#170#25 | E156: 19#37#1 | F156: 309 | G156: 4 | H156: 1
A157: 153 | B157: C元素伤害减免4 | C157: 104 | D157: 335032#170#170#25 | E157: 19#37#1 | F157: 309 | G157: 4 | H157: 1
A158: 154 | B158: D元素伤害减免1 | C158: 101 | D158: 336032#46#46#100 | E158: 19#37#1 | F158: 309 | G158: 1 | H158: 1
A159: 155 | B159: D元素伤害减免2 | C159: 101 | D159: 336032#93#93#75 | E159: 19#37#1 | F159: 309 | G159: 2 | H159: 1
A160: 156 | B160: D元素伤害减免1 | C160: 102 | D160: 336032#46#46#100 | E160: 19#37#1 | F160: 309 | G160: 1 | H160: 1
A161: 157 | B161: D元素伤害减免2 | C161: 102 | D161: 336032#93#93#75 | E161: 19#37#1 | F161: 309 | G161: 2 | H161: 1
A162: 158 | B162: D元素伤害减免3 | C162: 102 | D162: 336032#139#139#50 | E162: 19#37#1 | F162: 309 | G162: 3 | H162: 1
A163: 159 | B163: D元素伤害减免2 | C163: 103 | D163: 336032#93#93#75 | E163: 19#37#1 | F163: 309 | G163: 2 | H163: 1
A164: 160 | B164: D元素伤害减免3 | C164: 103 | D164: 336032#139#139#50 | E164: 19#37#1 | F164: 309 | G164: 3 | H164: 1
A165: 161 | B165: D元素伤害减免4 | C165: 103 | D165: 336032#170#170#25 | E165: 19#37#1 | F165: 309 | G165: 4 | H165: 1
A166: 162 | B166: D元素伤害减免4 | C166: 104 | D166: 336032#170#170#25 | E166: 19#37#1 | F166: 309 | G166: 4 | H166: 1
A167: 163 | B167: A元素攻击力1 | C167: 101 | D167: 333011#24#24#120 | E167: 10#19#1 | F167: 159 | G167: 1 | H167: 1
A168: 164 | B168: A元素攻击力2 | C168: 101 | D168: 333011#48#48#30 | E168: 10#19#1 | F168: 159 | G168: 2 | H168: 1
A169: 165 | B169: A元素攻击力1 | C169: 102 | D169: 333011#24#24#120 | E169: 10#19#1 | F169: 159 | G169: 1 | H169: 1
A170: 166 | B170: A元素攻击力2 | C170: 102 | D170: 333011#48#48#30 | E170: 10#19#1 | F170: 159 | G170: 2 | H170: 1
A171: 167 | B171: A元素攻击力3 | C171: 102 | D171: 333011#71#71#60 | E171: 10#19#1 | F171: 159 | G171: 3 | H171: 1
A172: 168 | B172: A元素攻击力2 | C172: 103 | D172: 333011#48#48#30 | E172: 10#19#1 | F172: 159 | G172: 2 | H172: 1
A173: 169 | B173: A元素攻击力3 | C173: 103 | D173: 333011#71#71#60 | E173: 10#19#1 | F173: 159 | G173: 3 | H173: 1
A174: 170 | B174: A元素攻击力4 | C174: 103 | D174: 333011#87#87#30 | E174: 10#19#1 | F174: 159 | G174: 4 | H174: 1
A175: 171 | B175: A元素攻击力4 | C175: 104 | D175: 333011#87#87#30 | E175: 10#19#1 | F175: 159 | G175: 4 | H175: 1
A176: 172 | B176: B元素攻击力1 | C176: 101 | D176: 334011#24#24#120 | E176: 10#19#1 | F176: 159 | G176: 1 | H176: 1
A177: 173 | B177: B元素攻击力2 | C177: 101 | D177: 334011#48#48#30 | E177: 10#19#1 | F177: 159 | G177: 2 | H177: 1
A178: 174 | B178: B元素攻击力1 | C178: 102 | D178: 334011#24#24#120 | E178: 10#19#1 | F178: 159 | G178: 1 | H178: 1
A179: 175 | B179: B元素攻击力2 | C179: 102 | D179: 334011#48#48#30 | E179: 10#19#1 | F179: 159 | G179: 2 | H179: 1
A180: 176 | B180: B元素攻击力3 | C180: 102 | D180: 334011#71#71#60 | E180: 10#19#1 | F180: 159 | G180: 3 | H180: 1
A181: 177 | B181: B元素攻击力2 | C181: 103 | D181: 334011#48#48#30 | E181: 10#19#1 | F181: 159 | G181: 2 | H181: 1
A182: 178 | B182: B元素攻击力3 | C182: 103 | D182: 334011#71#71#60 | E182: 10#19#1 | F182: 159 | G182: 3 | H182: 1
A183: 179 | B183: B元素攻击力4 | C183: 103 | D183: 334011#87#87#30 | E183: 10#19#1 | F183: 159 | G183: 4 | H183: 1
A184: 180 | B184: B元素攻击力4 | C184: 104 | D184: 334011#87#87#30 | E184: 10#19#1 | F184: 159 | G184: 4 | H184: 1
A185: 181 | B185: C元素攻击力1 | C185: 101 | D185: 335011#24#24#120 | E185: 10#19#1 | F185: 159 | G185: 1 | H185: 1
A186: 182 | B186: C元素攻击力2 | C186: 101 | D186: 335011#48#48#30 | E186: 10#19#1 | F186: 159 | G186: 2 | H186: 1
A187: 183 | B187: C元素攻击力1 | C187: 102 | D187: 335011#24#24#120 | E187: 10#19#1 | F187: 159 | G187: 1 | H187: 1
A188: 184 | B188: C元素攻击力2 | C188: 102 | D188: 335011#48#48#30 | E188: 10#19#1 | F188: 159 | G188: 2 | H188: 1
A189: 185 | B189: C元素攻击力3 | C189: 102 | D189: 335011#71#71#60 | E189: 10#19#1 | F189: 159 | G189: 3 | H189: 1
A190: 186 | B190: C元素攻击力2 | C190: 103 | D190: 335011#48#48#30 | E190: 10#19#1 | F190: 159 | G190: 2 | H190: 1
A191: 187 | B191: C元素攻击力3 | C191: 103 | D191: 335011#71#71#60 | E191: 10#19#1 | F191: 159 | G191: 3 | H191: 1
A192: 188 | B192: C元素攻击力4 | C192: 103 | D192: 335011#87#87#30 | E192: 10#19#1 | F192: 159 | G192: 4 | H192: 1
A193: 189 | B193: C元素攻击力4 | C193: 104 | D193: 335011#87#87#30 | E193: 10#19#1 | F193: 159 | G193: 4 | H193: 1
A194: 190 | B194: D元素攻击力1 | C194: 101 | D194: 336011#24#24#120 | E194: 10#19#1 | F194: 159 | G194: 1 | H194: 1
A195: 191 | B195: D元素攻击力2 | C195: 101 | D195: 336011#48#48#30 | E195: 10#19#1 | F195: 159 | G195: 2 | H195: 1
A196: 192 | B196: D元素攻击力1 | C196: 102 | D196: 336011#24#24#120 | E196: 10#19#1 | F196: 159 | G196: 1 | H196: 1
A197: 193 | B197: D元素攻击力2 | C197: 102 | D197: 336011#48#48#30 | E197: 10#19#1 | F197: 159 | G197: 2 | H197: 1
A198: 194 | B198: D元素攻击力3 | C198: 102 | D198: 336011#71#71#60 | E198: 10#19#1 | F198: 159 | G198: 3 | H198: 1
A199: 195 | B199: D元素攻击力2 | C199: 103 | D199: 336011#48#48#30 | E199: 10#19#1 | F199: 159 | G199: 2 | H199: 1
A200: 196 | B200: D元素攻击力3 | C200: 103 | D200: 336011#71#71#60 | E200: 10#19#1 | F200: 159 | G200: 3 | H200: 1
... 4574 more rows

Sheet Sheet2
D2: 只需改动粉色数值，即可在粉色列表中获取对应数据
D4: 9阶 | E4: 无视防御率 | J4: 双倍增伤 | N4: X阶 | AX4: 权重 | AY4: 副属性词条库 | AZ4: 属性id
C5: 比例 | E5: 基础值 | F5: 单次强化下限 | G5: 单次强化上限 | H5: 强化总上限 | J5: 基础值 | K5: 单次强化下限 | L5: 单次强化上限 | M5: 强化总上限 | Y5: 词条品质组 | Z5: 权重 | AB5: 无视防御率 | AG5: 双倍增伤 | AL5: 元素伤害加成 | AQ5: 元素攻击力 | AX5: 10 | AY5: 无视防御率 | AZ5: 317012
C6: 4 | D6: 普通 | E6: 0.003611111111 | F6: 0.001444444444 | G6: 0.002888888889 | H6: 0.02407407407 | J6: 0.007222222222 | K6: 0.002888888889 | L6: 0.005777777778 | M6: 0.04814814815 | O6: 85 | P6: 34 | Q6: 68 | R6: 301 | T6: 170 | U6: 68 | V6: 136 | W6: 601 | Y6: 1 | Z6: 4 | AB6: =O6 -> 85 | AC6: 34 | AD6: 68 | AE6: 301 | AG6: 170 | AH6: 68 | AI6: 136 | AJ6: 601 | AL6: =O13 -> 284 | AM6: 114 | AN6: 227 | AO6: 1002 | AQ6: 101 | AR6: 40 | AS6: 81 | AT6: 357 | AX6: 10 | AY6: 抵抗无视防御率 | AZ6: 317022
C7: 3 | D7: 稀有 | E7: 0.007222222222 | F7: 0.001444444444 | G7: 0.002888888889 | H7: 0.02407407407 | J7: 0.01444444444 | K7: 0.002888888889 | L7: 0.005777777778 | M7: 0.04814814815 | O7: 170 | P7: 34 | Q7: 68 | R7: 373 | T7: 341 | U7: 68 | V7: 136 | W7: 747 | Y7: 2 | Z7: 3 | AB7: =O7 -> 170 | AC7: 34 | AD7: 68 | AE7: 373 | AG7: 341 | AH7: 68 | AI7: 136 | AJ7: 747 | AL7: =O14 -> 568 | AM7: 114 | AN7: 227 | AO7: 1245 | AQ7: =T14 -> 202 | AR7: 40 | AS7: 81 | AT7: 444 | AX7: 10 | AY7: 双倍增伤 | AZ7: 304042
C8: 2 | D8: 史诗 | E8: 0.01083333333 | F8: 0.001444444444 | G8: 0.002888888889 | H8: 0.02407407407 | J8: 0.02166666667 | K8: 0.002888888889 | L8: 0.005777777778 | M8: 0.04814814815 | O8: 255 | P8: 34 | Q8: 68 | R8: 462 | T8: 511 | U8: 68 | V8: 136 | W8: 923 | Y8: 1 | Z8: 4 | AB8: =O6 -> 85 | AC8: 34 | AD8: 68 | AE8: 301 | AG8: 170 | AH8: 68 | AI8: 136 | AJ8: 601 | AL8: =O13 -> 284 | AM8: 114 | AN8: 227 | AO8: 1002 | AQ8: =T13 -> 101 | AR8: 40 | AS8: 81 | AT8: 357 | AX8: 10 | AY8: 卓越增伤 | AZ8: 303042
C9: 1 | D9: 传说 | E9: 0.01324074074 | F9: 0.001444444444 | G9: 0.002888888889 | H9: 0.02407407407 | J9: 0.02648148148 | K9: 0.002888888889 | L9: 0.005777777778 | M9: 0.04814814815 | O9: 312 | P9: 34 | Q9: 68 | R9: 568 | T9: 624 | U9: 68 | V9: 136 | W9: 1135 | Y9: 2 | Z9: 3 | AB9: =O7 -> 170 | AC9: 34 | AD9: 68 | AE9: 373 | AG9: =T7 -> 341 | AH9: 68 | AI9: 136 | AJ9: 747 | AL9: =O14 -> 568 | AM9: 114 | AN9: 227 | AO9: 1245 | AQ9: =T14 -> 202 | AR9: 40 | AS9: 81 | AT9: 444 | AX9: 10 | AY9: 幸运增伤 | AZ9: 305042
Y10: 3 | Z10: 2 | AB10: =O8 -> 255 | AC10: 34 | AD10: 68 | AE10: 462 | AG10: =T8 -> 511 | AH10: 68 | AI10: 136 | AJ10: 923 | AL10: =O15 -> 851 | AM10: =P15 -> 114 | AN10: 227 | AO10: 1539 | AQ10: =T15 -> 303 | AR10: 40 | AS10: 81 | AT10: 548 | AX10: 10 | AY10: 双倍减免 | AZ10: 304062
E11: 元素伤害加成 | J11: 元素攻击力 | Y11: 2 | Z11: 3 | AB11: =O7 -> 170 | AC11: =P7 -> 34 | AD11: =Q7 -> 68 | AE11: =R7 -> 373 | AG11: =T7 -> 341 | AH11: 68 | AI11: 136 | AJ11: 747 | AL11: =O14 -> 568 | AM11: 114 | AN11: 227 | AO11: 1245 | AQ11: =T14 -> 202 | AR11: 40 | AS11: 81 | AT11: 444 | AX11: 10 | AY11: 卓越减免 | AZ11: 303062
E12: 基础值 | F12: 单次强化下限 | G12: 单次强化上限 | H12: 强化总上限 | J12: 基础值 | K12: 单次强化下限 | L12: 单次强化上限 | M12: 强化总上限 | Y12: 3 | Z12: 2 | AB12: 255 | AC12: 34 | AD12: 68 | AE12: 462 | AG12: =T8 -> 511 | AH12: 68 | AI12: 136 | AJ12: 923 | AL12: =O15 -> 851 | AM12: 114 | AN12: 227 | AO12: 1539 | AQ12: =T15 -> 303 | AR12: 40 | AS12: 81 | AT12: 548 | AX12: 10 | AY12: 幸运减免 | AZ12: 305062
D13: 普通 | E13: 0.01203703704 | F13: 0.004814814815 | G13: 0.00962962963 | H13: 0.08024691358 | J13: 43 | K13: 17 | L13: 34 | M13: 286 | O13: 284 | P13: 114 | Q13: 227 | R13: 1002 | T13: 101 | U13: 40 | V13: 81 | W13: 357 | Y13: 4 | Z13: 1 | AB13: 312 | AC13: 34 | AD13: 68 | AE13: 568 | AG13: =T9 -> 624 | AH13: 68 | AI13: 136 | AJ13: 1135 | AL13: =O16 -> 1041 | AM13: 114 | AN13: 227 | AO13: 1892 | AQ13: =T16 -> 371 | AR13: 40 | AS13: 81 | AT13: 674 | AX13: 15 | AY13: PVP增伤 | AZ13: 311212
D14: 稀有 | E14: 0.02407407407 | F14: 0.004814814815 | G14: 0.00962962963 | H14: 0.08024691358 | J14: 86 | K14: 17 | L14: 34 | M14: 286 | O14: 568 | P14: 114 | Q14: 227 | R14: 1245 | T14: 202 | U14: 40 | V14: 81 | W14: 444 | Y14: 4 | Z14: 1 | AB14: =O9 -> 312 | AC14: 34 | AD14: 68 | AE14: 568 | AG14: =T9 -> 624 | AH14: 68 | AI14: 136 | AJ14: 1135 | AL14: =O16 -> 1041 | AM14: 114 | AN14: 227 | AO14: 1892 | AQ14: =T16 -> 371 | AR14: 40 | AS14: 81 | AT14: 674 | AX14: 15 | AY14: PVP减伤 | AZ14: 312212
D15: 史诗 | E15: 0.03611111111 | F15: 0.004814814815 | G15: 0.00962962963 | H15: 0.08024691358 | J15: 129 | K15: 17 | L15: 34 | M15: 286 | O15: 851 | P15: 114 | Q15: 227 | R15: 1539 | T15: 303 | U15: 40 | V15: 81 | W15: 548 | AX15: 25 | AY15: A元素伤害加成 | AZ15: 333022
D16: 传说 | E16: 0.04413580247 | F16: 0.004814814815 | G16: 0.00962962963 | H16: 0.08024691358 | J16: 157 | K16: 17 | L16: 34 | M16: 286 | O16: 1041 | P16: 114 | Q16: 227 | R16: 1892 | T16: 371 | U16: 40 | V16: 81 | W16: 674 | AX16: 25 | AY16: B元素伤害加成 | AZ16: 334022
AX17: 25 | AY17: C元素伤害加成 | AZ17: 335022
D18: 10 | E18: 无视防御率 | J18: 双倍增伤 | N18: 10阶 | AX18: 25 | AY18: D元素伤害加成 | AZ18: 336022
E19: 基础值 | F19: 单次强化下限 | G19: 单次强化上限 | H19: 强化总上限 | J19: 基础值 | K19: 单次强化下限 | L19: 单次强化上限 | M19: 强化总上限 | AX19: 25 | AY19: A元素伤害减免 | AZ19: 333032
D20: 普通 | E20: 0.003972222222 | F20: 0.001588888889 | G20: 0.003177777778 | H20: =H6*1.025 -> 0.02467592593 | J20: 0.007944444444 | K20: 0.003177777778 | L20: 0.006355555556 | M20: =M6*1.025 -> 0.04935185185 | N20: 普通 | O20: =ROUND(E20*10000,0) -> 40 | P20: 16 | Q20: 32 | R20: 247 | T20: 79 | U20: 32 | V20: 64 | W20: 494 | AX20: 25 | AY20: B元素伤害减免 | AZ20: 334032
D21: 稀有 | E21: 0.007944444444 | F21: 0.001588888889 | G21: 0.003177777778 | H21: =H7*1.05 -> 0.02527777778 | J21: 0.01588888889 | K21: 0.003177777778 | L21: 0.006355555556 | M21: =M7*1.05 -> 0.05055555556 | N21: 稀有 | O21: =ROUND(E21*10000,0) -> 79 | P21: 16 | Q21: 32 | R21: 253 | T21: 159 | U21: 32 | V21: 64 | W21: 506 | AX21: 25 | AY21: C元素伤害减免 | AZ21: 335032
D22: 史诗 | E22: 0.01191666667 | F22: 0.001588888889 | G22: 0.003177777778 | H22: =H8*1.075 -> 0.02587962963 | J22: 0.02383333333 | K22: 0.003177777778 | L22: 0.006355555556 | M22: =M8*1.075 -> 0.05175925926 | N22: 史诗 | O22: =ROUND(E22*10000,0) -> 119 | P22: 16 | Q22: 32 | R22: 259 | T22: 238 | U22: 32 | V22: 64 | W22: 518 | AX22: 25 | AY22: D元素伤害减免 | AZ22: 336032
D23: 传说 | E23: 0.01456481481 | F23: 0.001588888889 | G23: 0.003177777778 | H23: =H9*1.1 -> 0.02648148148 | J23: 0.02912962963 | K23: 0.003177777778 | L23: 0.006355555556 | M23: =M9*1.1 -> 0.05296296296 | N23: 传说 | O23: =ROUND(E23*10000,0) -> 146 | P23: 16 | Q23: 32 | R23: 265 | T23: 291 | U23: 32 | V23: 64 | W23: 530 | AX23: 30 | AY23: A元素攻击力 | AZ23: 333011
AX24: 30 | AY24: B元素攻击力 | AZ24: 334011
E25: 元素伤害加成 | J25: 元素攻击力 | AX25: 30 | AY25: C元素攻击力 | AZ25: 335011
E26: 基础值 | F26: 单次强化下限 | G26: 单次强化上限 | H26: 强化总上限 | J26: 基础值 | K26: 单次强化下限 | L26: 单次强化上限 | M26: 强化总上限 | AX26: 30 | AY26: D元素攻击力 | AZ26: 336011
D27: 普通 | E27: 0.01324074074 | F27: 0.005296296296 | G27: 0.01059259259 | H27: =H13*1.025 -> 0.08225308642 | J27: 47.14285714 | K27: 18.85714286 | L27: 37.71428571 | M27: =M13*1.025 -> 293.15 | N27: 普通 | O27: =ROUND(E27*10000,0) -> 132 | P27: =ROUND(F27*10000,0) -> 53 | Q27: =ROUND(G27*10000,0) -> 106 | R27: =ROUND(H27*10000,0) -> 823 | T27: =ROUND(J27,0) -> 47 | U27: 19 | V27: 38 | W27: 293 | AX27: 30 | AY27: 杀怪回血百分比 | AZ27: 207042
D28: 稀有 | E28: 0.02648148148 | F28: 0.005296296296 | G28: 0.01059259259 | H28: =H14*1.05 -> 0.08425925926 | J28: 94.28571429 | K28: 18.85714286 | L28: 37.71428571 | M28: =M14*1.05 -> 300.3 | N28: 稀有 | O28: 265 | P28: 53 | Q28: 106 | R28: 843 | T28: =ROUND(J28,0) -> 94 | U28: 19 | V28: 38 | W28: 300 | AX28: 30 | AY28: 杀怪回蓝百分比 | AZ28: 208042
D29: 史诗 | E29: 0.03972222222 | F29: 0.005296296296 | G29: 0.01059259259 | H29: =H15*1.075 -> 0.0862654321 | J29: 141.4285714 | K29: 18.85714286 | L29: 37.71428571 | M29: =M15*1.075 -> 307.45 | N29: 史诗 | O29: 397 | P29: 53 | Q29: 106 | R29: 863 | T29: =ROUND(J29,0) -> 141 | U29: 19 | V29: 38 | W29: 307 | AX29: 30 | AY29: 金币掉落百分比 | AZ29: 319012
D30: 传说 | E30: 0.04854938272 | F30: 0.005296296296 | G30: 0.01059259259 | H30: =H16*1.1 -> 0.08827160494 | J30: 172.8571429 | K30: 18.85714286 | L30: 37.71428571 | M30: =M16*1.1 -> 314.6 | N30: 传说 | O30: 485 | P30: 53 | Q30: 106 | R30: 883 | T30: =ROUND(J30,0) -> 173 | U30: 19 | V30: 38 | W30: 315 | AX30: 100 | AY30: 力量 | AZ30: 10001
AX31: 100 | AY31: 敏捷 | AZ31: 10002
D32: 11 | E32: 无视防御率 | J32: 双倍增伤 | N32: 11 | AX32: 100 | AY32: 智力 | AZ32: 10003
E33: 基础值 | F33: 单次强化下限 | G33: 单次强化上限 | H33: 强化总上限 | J33: 基础值 | K33: 单次强化下限 | L33: 单次强化上限 | M33: 强化总上限 | AX33: 100 | AY33: 体力 | AZ33: 10004
D34: 普通 | E34: 0.004369444444 | F34: 0.001747777778 | G34: 0.003495555556 | H34: =H20*1.025 -> 0.02529282407 | J34: 0.008738888889 | K34: 0.003495555556 | L34: 0.006991111111 | M34: =M20*1.025 -> 0.05058564815 | N34: 普通 | O34: =ROUND(E34*10000,0) -> 44 | P34: 17 | Q34: 35 | R34: 253 | T34: 87 | U34: 35 | V34: 70 | W34: 506
D35: 稀有 | E35: 0.008738888889 | F35: 0.001747777778 | G35: 0.003495555556 | H35: =H21*1.05 -> 0.02654166667 | J35: 0.01747777778 | K35: 0.003495555556 | L35: 0.006991111111 | M35: =M21*1.05 -> 0.05308333333 | N35: 稀有 | O35: =ROUND(E35*10000,0) -> 87 | P35: 17 | Q35: 35 | R35: 265 | T35: 175 | U35: 35 | V35: 70 | W35: 531
D36: 史诗 | E36: 0.01310833333 | F36: 0.001747777778 | G36: 0.003495555556 | H36: =H22*1.075 -> 0.02782060185 | J36: 0.02621666667 | K36: 0.003495555556 | L36: 0.006991111111 | M36: =M22*1.075 -> 0.0556412037 | N36: 史诗 | O36: =ROUND(E36*10000,0) -> 131 | P36: 17 | Q36: 35 | R36: 278 | T36: 262 | U36: 35 | V36: 70 | W36: 556
D37: 传说 | E37: 0.0160212963 | F37: 0.001747777778 | G37: 0.003495555556 | H37: =H23*1.1 -> 0.02912962963 | J37: 0.03204259259 | K37: 0.003495555556 | L37: 0.006991111111 | M37: =M23*1.1 -> 0.05825925926 | N37: 传说 | O37: =ROUND(E37*10000,0) -> 160 | P37: 17 | Q37: 35 | R37: 291 | T37: 320 | U37: 35 | V37: 70 | W37: 583
E39: 元素伤害加成 | J39: 元素攻击力
E40: 基础值 | F40: 单次强化下限 | G40: 单次强化上限 | H40: 强化总上限 | J40: 基础值 | K40: 单次强化下限 | L40: 单次强化上限 | M40: 强化总上限
D41: 普通 | E41: 0.01456481481 | F41: 0.005825925926 | G41: 0.01165185185 | H41: =H27*1.025 -> 0.08430941358 | J41: 51.85714286 | K41: 20.74285714 | L41: 41.48571429 | M41: =M27*1.025 -> 300.47875 | N41: 普通 | O41: =ROUND(E41*10000,0) -> 146 | P41: =ROUND(F41*10000,0) -> 58 | Q41: =ROUND(G41*10000,0) -> 117 | R41: =ROUND(H41*10000,0) -> 843 | T41: =ROUND(J41,0) -> 52 | U41: 21 | V41: 41 | W41: 300
D42: 稀有 | E42: 0.02912962963 | F42: 0.005825925926 | G42: 0.01165185185 | H42: =H28*1.05 -> 0.08847222222 | J42: 103.7142857 | K42: 20.74285714 | L42: 41.48571429 | M42: =M28*1.05 -> 315.315 | N42: 稀有 | O42: 291 | P42: 58 | Q42: 117 | R42: 885 | T42: =ROUND(J42,0) -> 104 | U42: 21 | V42: 41 | W42: 315
D43: 史诗 | E43: 0.04369444444 | F43: 0.005825925926 | G43: 0.01165185185 | H43: =H29*1.075 -> 0.09273533951 | J43: 155.5714286 | K43: 20.74285714 | L43: 41.48571429 | M43: =M29*1.075 -> 330.50875 | N43: 史诗 | O43: 437 | P43: 58 | Q43: 117 | R43: 927 | T43: =ROUND(J43,0) -> 156 | U43: 21 | V43: 41 | W43: 331
D44: 传说 | E44: 0.05340432099 | F44: 0.005825925926 | G44: 0.01165185185 | H44: =H30*1.1 -> 0.09709876543 | J44: 190.1428571 | K44: 20.74285714 | L44: 41.48571429 | M44: =M30*1.1 -> 346.06 | N44: 传说 | O44: 534 | P44: 58 | Q44: 117 | R44: 971 | T44: =ROUND(J44,0) -> 190 | U44: 21 | V44: 41 | W44: 346
D46: 12 | E46: 无视防御率 | J46: 双倍增伤 | N46: 12
E47: 基础值 | F47: 单次强化下限 | G47: 单次强化上限 | H47: 强化总上限 | J47: 基础值 | K47: 单次强化下限 | L47: 单次强化上限 | M47: 强化总上限
D48: 普通 | E48: 0.004806388889 | F48: 0.001922555556 | G48: 0.003845111111 | H48: =H34*1.025 -> 0.02592514468 | J48: 0.009612777778 | K48: 0.003845111111 | L48: 0.007690222222 | M48: =M34*1.025 -> 0.05185028935 | N48: 普通 | O48: =ROUND(E48*10000,0) -> 48 | P48: 19 | Q48: 38 | R48: 259 | T48: 96 | U48: 38 | V48: 77 | W48: 519
D49: 稀有 | E49: 0.009612777778 | F49: 0.001922555556 | G49: 0.003845111111 | H49: =H35*1.05 -> 0.02786875 | J49: 0.01922555556 | K49: 0.003845111111 | L49: 0.007690222222 | M49: =M35*1.05 -> 0.0557375 | N49: 稀有 | O49: =ROUND(E49*10000,0) -> 96 | P49: 19 | Q49: 38 | R49: 279 | T49: 192 | U49: 38 | V49: 77 | W49: 557
D50: 史诗 | E50: 0.01441916667 | F50: 0.001922555556 | G50: 0.003845111111 | H50: =H36*1.075 -> 0.02990714699 | J50: 0.02883833333 | K50: 0.003845111111 | L50: 0.007690222222 | M50: =M36*1.075 -> 0.05981429398 | N50: 史诗 | O50: =ROUND(E50*10000,0) -> 144 | P50: 19 | Q50: 38 | R50: 299 | T50: 288 | U50: 38 | V50: 77 | W50: 598
D51: 传说 | E51: 0.01762342593 | F51: 0.001922555556 | G51: 0.003845111111 | H51: =H37*1.1 -> 0.03204259259 | J51: 0.03524685185 | K51: 0.003845111111 | L51: 0.007690222222 | M51: =M37*1.1 -> 0.06408518519 | N51: 传说 | O51: =ROUND(E51*10000,0) -> 176 | P51: 19 | Q51: 38 | R51: 320 | T51: 352 | U51: 38 | V51: 77 | W51: 641
E53: 元素伤害加成 | J53: 元素攻击力
E54: 基础值 | F54: 单次强化下限 | G54: 单次强化上限 | H54: 强化总上限 | J54: 基础值 | K54: 单次强化下限 | L54: 单次强化上限 | M54: 强化总上限
D55: 普通 | E55: 0.0160212963 | F55: 0.006408518519 | G55: 0.01281703704 | H55: =H41*1.025 -> 0.08641714892 | J55: 57.04285714 | K55: 22.81714286 | L55: 45.63428571 | M55: =M41*1.025 -> 307.9907187 | N55: 普通 | O55: =ROUND(E55*10000,0) -> 160 | P55: =ROUND(F55*10000,0) -> 64 | Q55: =ROUND(G55*10000,0) -> 128 | R55: =ROUND(H55*10000,0) -> 864 | T55: =ROUND(J55,0) -> 57 | U55: 23 | V55: 46 | W55: 308
D56: 稀有 | E56: 0.03204259259 | F56: 0.006408518519 | G56: 0.01281703704 | H56: =H42*1.05 -> 0.09289583333 | J56: 114.0857143 | K56: 22.81714286 | L56: 45.63428571 | M56: =M42*1.05 -> 331.08075 | N56: 稀有 | O56: 320 | P56: 64 | Q56: 128 | R56: 929 | T56: =ROUND(J56,0) -> 114 | U56: 23 | V56: 46 | W56: 331
D57: 史诗 | E57: 0.04806388889 | F57: 0.006408518519 | G57: 0.01281703704 | H57: =H43*1.075 -> 0.09969048997 | J57: 171.1285714 | K57: 22.81714286 | L57: 45.63428571 | M57: =M43*1.075 -> 355.2969063 | N57: 史诗 | O57: 481 | P57: 64 | Q57: 128 | R57: 997 | T57: =ROUND(J57,0) -> 171 | U57: 23 | V57: 46 | W57: 355
D58: 传说 | E58: 0.05874475309 | F58: 0.006408518519 | G58: 0.01281703704 | H58: =H44*1.1 -> 0.106808642 | J58: 209.1571429 | K58: 22.81714286 | L58: 45.63428571 | M58: =M44*1.1 -> 380.666 | N58: 传说 | O58: 587 | P58: 64 | Q58: 128 | R58: 1068 | T58: =ROUND(J58,0) -> 209 | U58: 23 | V58: 46 | W58: 381
D60: 13 | E60: 无视防御率 | J60: 双倍增伤 | N60: 13
E61: 基础值 | F61: 单次强化下限 | G61: 单次强化上限 | H61: 强化总上限 | J61: 基础值 | K61: 单次强化下限 | L61: 单次强化上限 | M61: 强化总上限
D62: 普通 | E62: 0.005287027778 | F62: 0.002114811111 | G62: 0.004229622222 | H62: =H48*1.025 -> 0.02657327329 | J62: 0.01057405556 | K62: 0.004229622222 | L62: 0.008459244444 | M62: =M48*1.025 -> 0.05314654659 | N62: 普通 | O62: =ROUND(E62*10000,0) -> 53 | P62: 21 | Q62: 42 | R62: 266 | T62: 106 | U62: 42 | V62: 85 | W62: 531
D63: 稀有 | E63: 0.01057405556 | F63: 0.002114811111 | G63: 0.004229622222 | H63: =H49*1.05 -> 0.0292621875 | J63: 0.02114811111 | K63: 0.004229622222 | L63: 0.008459244444 | M63: =M49*1.05 -> 0.058524375 | N63: 稀有 | O63: =ROUND(E63*10000,0) -> 106 | P63: 21 | Q63: 42 | R63: 293 | T63: 211 | U63: 42 | V63: 85 | W63: 585
D64: 史诗 | E64: 0.01586108333 | F64: 0.002114811111 | G64: 0.004229622222 | H64: =H50*1.075 -> 0.03215018302 | J64: 0.03172216667 | K64: 0.004229622222 | L64: 0.008459244444 | M64: =M50*1.075 -> 0.06430036603 | N64: 史诗 | O64: =ROUND(E64*10000,0) -> 159 | P64: 21 | Q64: 42 | R64: 322 | T64: 317 | U64: 42 | V64: 85 | W64: 643
D65: 传说 | E65: 0.01938576852 | F65: 0.002114811111 | G65: 0.004229622222 | H65: =H51*1.1 -> 0.03524685185 | J65: 0.03877153704 | K65: 0.004229622222 | L65: 0.008459244444 | M65: =M51*1.1 -> 0.0704937037 | N65: 传说 | O65: =ROUND(E65*10000,0) -> 194 | P65: 21 | Q65: 42 | R65: 352 | T65: 388 | U65: 42 | V65: 85 | W65: 705
E67: 元素伤害加成 | J67: 元素攻击力
E68: 基础值 | F68: 单次强化下限 | G68: 单次强化上限 | H68: 强化总上限 | J68: 基础值 | K68: 单次强化下限 | L68: 单次强化上限 | M68: 强化总上限
D69: 普通 | E69: 0.01762342593 | F69: 0.00704937037 | G69: 0.01409874074 | H69: =H55*1.025 -> 0.08857757764 | J69: 62.74714286 | K69: 25.09885714 | L69: 50.19771429 | M69: =M55*1.025 -> 315.6904867 | N69: 普通 | O69: =ROUND(E69*10000,0) -> 176 | P69: =ROUND(F69*10000,0) -> 70 | Q69: =ROUND(G69*10000,0) -> 141 | R69: =ROUND(H69*10000,0) -> 886 | T69: =ROUND(J69,0) -> 63 | U69: 25 | V69: 50 | W69: 316
D70: 稀有 | E70: 0.03524685185 | F70: 0.00704937037 | G70: 0.01409874074 | H70: =H56*1.05 -> 0.097540625 | J70: 125.4942857 | K70: 25.09885714 | L70: 50.19771429 | M70: =M56*1.05 -> 347.6347875 | N70: 稀有 | O70: 352 | P70: 70 | Q70: 141 | R70: 975 | T70: =ROUND(J70,0) -> 125 | U70: 25 | V70: 50 | W70: 348
D71: 史诗 | E71: 0.05287027778 | F71: 0.00704937037 | G71: 0.01409874074 | H71: =H57*1.075 -> 0.1071672767 | J71: 188.2414286 | K71: 25.09885714 | L71: 50.19771429 | M71: =M57*1.075 -> 381.9441742 | N71: 史诗 | O71: 529 | P71: 70 | Q71: 141 | R71: 1072 | T71: =ROUND(J71,0) -> 188 | U71: 25 | V71: 50 | W71: 382
D72: 传说 | E72: 0.0646192284 | F72: 0.00704937037 | G72: 0.01409874074 | H72: =H58*1.1 -> 0.1174895062 | J72: 230.0728571 | K72: 25.09885714 | L72: 50.19771429 | M72: =M58*1.1 -> 418.7326 | N72: 传说 | O72: 646 | P72: 70 | Q72: 141 | R72: 1175 | T72: =ROUND(J72,0) -> 230 | U72: 25 | V72: 50 | W72: 419
D74: 14 | E74: 无视防御率 | J74: 双倍增伤 | N74: 14
E75: 基础值 | F75: 单次强化下限 | G75: 单次强化上限 | H75: 强化总上限 | J75: 基础值 | K75: 单次强化下限 | L75: 单次强化上限 | M75: 强化总上限
D76: 普通 | E76: 0.005815730556 | F76: 0.002326292222 | G76: 0.004652584444 | H76: =H62*1.025 -> 0.02723760513 | J76: 0.01163146111 | K76: 0.004652584444 | L76: 0.009305168889 | M76: =M62*1.025 -> 0.05447521025 | N76: 普通 | O76: =ROUND(E76*10000,0) -> 58 | P76: 23 | Q76: 47 | R76: 272 | T76: 116 | U76: 47 | V76: 93 | W76: 545
D77: 稀有 | E77: 0.01163146111 | F77: 0.002326292222 | G77: 0.004652584444 | H77: =H63*1.05 -> 0.03072529687 | J77: 0.02326292222 | K77: 0.004652584444 | L77: 0.009305168889 | M77: =M63*1.05 -> 0.06145059375 | N77: 稀有 | O77: =ROUND(E77*10000,0) -> 116 | P77: 23 | Q77: 47 | R77: 307 | T77: 233 | U77: 47 | V77: 93 | W77: 615
D78: 史诗 | E78: 0.01744719167 | F78: 0.002326292222 | G78: 0.004652584444 | H78: =H64*1.075 -> 0.03456144674 | J78: 0.03489438333 | K78: 0.004652584444 | L78: 0.009305168889 | M78: =M64*1.075 -> 0.06912289348 | N78: 史诗 | O78: =ROUND(E78*10000,0) -> 174 | P78: 23 | Q78: 47 | R78: 346 | T78: 349 | U78: 47 | V78: 93 | W78: 691
D79: 传说 | E79: 0.02132434537 | F79: 0.002326292222 | G79: 0.004652584444 | H79: =H65*1.1 -> 0.03877153704 | J79: 0.04264869074 | K79: 0.004652584444 | L79: 0.009305168889 | M79: =M65*1.1 -> 0.07754307407 | N79: 传说 | O79: =ROUND(E79*10000,0) -> 213 | P79: 23 | Q79: 47 | R79: 388 | T79: 426 | U79: 47 | V79: 93 | W79: 775
E81: 元素伤害加成 | J81: 元素攻击力
E82: 基础值 | F82: 单次强化下限 | G82: 单次强化上限 | H82: 强化总上限 | J82: 基础值 | K82: 单次强化下限 | L82: 单次强化上限 | M82: 强化总上限
D83: 普通 | E83: 0.01938576852 | F83: 0.007754307407 | G83: 0.01550861481 | H83: =H69*1.025 -> 0.09079201708 | J83: 69.02185714 | K83: 27.60874286 | L83: 55.21748571 | M83: =M69*1.025 -> 323.5827489 | N83: 普通 | O83: =ROUND(E83*10000,0) -> 194 | P83: =ROUND(F83*10000,0) -> 78 | Q83: =ROUND(G83*10000,0) -> 155 | R83: =ROUND(H83*10000,0) -> 908 | T83: =ROUND(J83,0) -> 69 | U83: 28 | V83: 55 | W83: 324
D84: 稀有 | E84: 0.03877153704 | F84: 0.007754307407 | G84: 0.01550861481 | H84: =H70*1.05 -> 0.1024176563 | J84: 138.0437143 | K84: 27.60874286 | L84: 55.21748571 | M84: =M70*1.05 -> 365.0165269 | N84: 稀有 | O84: 388 | P84: 78 | Q84: 155 | R84: 1024 | T84: =ROUND(J84,0) -> 138 | U84: 28 | V84: 55 | W84: 365
D85: 史诗 | E85: 0.05815730556 | F85: 0.007754307407 | G85: 0.01550861481 | H85: =H71*1.075 -> 0.1152048225 | J85: 207.0655714 | K85: 27.60874286 | L85: 55.21748571 | M85: =M71*1.075 -> 410.5899873 | N85: 史诗 | O85: 582 | P85: 78 | Q85: 155 | R85: 1152 | T85: =ROUND(J85,0) -> 207 | U85: 28 | V85: 55 | W85: 411
D86: 传说 | E86: 0.07108115123 | F86: 0.007754307407 | G86: 0.01550861481 | H86: =H72*1.1 -> 0.1292384568 | J86: 253.0801429 | K86: 27.60874286 | L86: 55.21748571 | M86: =M72*1.1 -> 460.60586 | N86: 传说 | O86: 711 | P86: 78 | Q86: 155 | R86: 1292 | T86: =ROUND(J86,0) -> 253 | U86: 28 | V86: 55 | W86: 461
D88: 15 | E88: 无视防御率 | J88: 双倍增伤 | N88: 15
E89: 基础值 | F89: 单次强化下限 | G89: 单次强化上限 | H89: 强化总上限 | J89: 基础值 | K89: 单次强化下限 | L89: 单次强化上限 | M89: 强化总上限
D90: 普通 | E90: 0.006397303611 | F90: 0.002558921444 | G90: 0.005117842889 | H90: =H76*1.025 -> 0.02791854525 | J90: 0.01279460722 | K90: 0.005117842889 | L90: 0.01023568578 | M90: =M76*1.025 -> 0.05583709051 | N90: 普通 | O90: =ROUND(E90*10000,0) -> 64 | P90: 26 | Q90: 51 | R90: 279 | T90: 128 | U90: 51 | V90: 102 | W90: 558
D91: 稀有 | E91: 0.01279460722 | F91: 0.002558921444 | G91: 0.005117842889 | H91: =H77*1.05 -> 0.03226156172 | J91: 0.02558921444 | K91: 0.005117842889 | L91: 0.01023568578 | M91: =M77*1.05 -> 0.06452312344 | N91: 稀有 | O91: =ROUND(E91*10000,0) -> 128 | P91: 26 | Q91: 51 | R91: 323 | T91: 256 | U91: 51 | V91: 102 | W91: 645
D92: 史诗 | E92: 0.01919191083 | F92: 0.002558921444 | G92: 0.005117842889 | H92: =H78*1.075 -> 0.03715355525 | J92: 0.03838382167 | K92: 0.005117842889 | L92: 0.01023568578 | M92: =M78*1.075 -> 0.07430711049 | N92: 史诗 | O92: =ROUND(E92*10000,0) -> 192 | P92: 26 | Q92: 51 | R92: 372 | T92: 384 | U92: 51 | V92: 102 | W92: 743
D93: 传说 | E93: 0.02345677991 | F93: 0.002558921444 | G93: 0.005117842889 | H93: =H79*1.1 -> 0.04264869074 | J93: 0.04691355981 | K93: 0.005117842889 | L93: 0.01023568578 | M93: =M79*1.1 -> 0.08529738148 | N93: 传说 | O93: =ROUND(E93*10000,0) -> 235 | P93: 26 | Q93: 51 | R93: 426 | T93: 469 | U93: 51 | V93: 102 | W93: 853
E95: 元素伤害加成 | J95: 元素攻击力
E96: 基础值 | F96: 单次强化下限 | G96: 单次强化上限 | H96: 强化总上限 | J96: 基础值 | K96: 单次强化下限 | L96: 单次强化上限 | M96: 强化总上限
D97: 普通 | E97: 0.02132434537 | F97: 0.008529738148 | G97: 0.0170594763 | H97: =H83*1.025 -> 0.09306181751 | J97: 75.92404286 | K97: 30.36961714 | L97: 60.73923429 | M97: =M83*1.025 -> 331.6723176 | N97: 普通 | O97: =ROUND(E97*10000,0) -> 213 | P97: =ROUND(F97*10000,0) -> 85 | Q97: =ROUND(G97*10000,0) -> 171 | R97: =ROUND(H97*10000,0) -> 931 | T97: =ROUND(J97,0) -> 76 | U97: 30 | V97: 61 | W97: 332
D98: 稀有 | E98: 0.04264869074 | F98: 0.008529738148 | G98: 0.0170594763 | H98: =H84*1.05 -> 0.1075385391 | J98: 151.8480857 | K98: 30.36961714 | L98: 60.73923429 | M98: =M84*1.05 -> 383.2673532 | N98: 稀有 | O98: 426 | P98: 85 | Q98: 171 | R98: 1075 | T98: =ROUND(J98,0) -> 152 | U98: 30 | V98: 61 | W98: 383
D99: 史诗 | E99: 0.06397303611 | F99: 0.008529738148 | G99: 0.0170594763 | H99: =H85*1.075 -> 0.1238451842 | J99: 227.7721286 | K99: 30.36961714 | L99: 60.73923429 | M99: =M85*1.075 -> 441.3842363 | N99: 史诗 | O99: 640 | P99: 85 | Q99: 171 | R99: 1238 | T99: =ROUND(J99,0) -> 228 | U99: 30 | V99: 61 | W99: 441
D100: 传说 | E100: 0.07818926636 | F100: 0.008529738148 | G100: 0.0170594763 | H100: =H86*1.1 -> 0.1421623025 | J100: 278.3881571 | K100: 30.36961714 | L100: 60.73923429 | M100: =M86*1.1 -> 506.666446 | N100: 传说 | O100: 782 | P100: 85 | Q100: 171 | R100: 1422 | T100: =ROUND(J100,0) -> 278 | U100: 30 | V100: 61 | W100: 507
D102: 16 | E102: 无视防御率 | J102: 双倍增伤 | N102: 16
E103: 基础值 | F103: 单次强化下限 | G103: 单次强化上限 | H103: 强化总上限 | J103: 基础值 | K103: 单次强化下限 | L103: 单次强化上限 | M103: 强化总上限
D104: 普通 | E104: 0.007037033972 | F104: 0.002814813589 | G104: 0.005629627178 | H104: =H90*1.025 -> 0.02861650888 | J104: 0.01407406794 | K104: 0.005629627178 | L104: 0.01125925436 | M104: =M90*1.025 -> 0.05723301777 | N104: 普通 | O104: =ROUND(E104*10000,0) -> 70 | P104: 28 | Q104: 56 | R104: 286 | T104: 141 | U104: 56 | V104: 113 | W104: 572
D105: 稀有 | E105: 0.01407406794 | F105: 0.002814813589 | G105: 0.005629627178 | H105: =H91*1.05 -> 0.0338746398 | J105: 0.02814813589 | K105: 0.005629627178 | L105: 0.01125925436 | M105: =M91*1.05 -> 0.06774927961 | N105: 稀有 | O105: =ROUND(E105*10000,0) -> 141 | P105: 28 | Q105: 56 | R105: 339 | T105: 281 | U105: 56 | V105: 113 | W105: 677
D106: 史诗 | E106: 0.02111110192 | F106: 0.002814813589 | G106: 0.005629627178 | H106: =H92*1.075 -> 0.03994007189 | J106: 0.04222220383 | K106: 0.005629627178 | L106: 0.01125925436 | M106: =M92*1.075 -> 0.07988014378 | N106: 史诗 | O106: =ROUND(E106*10000,0) -> 211 | P106: 28 | Q106: 56 | R106: 399 | T106: 422 | U106: 56 | V106: 113 | W106: 799
D107: 传说 | E107: 0.0258024579 | F107: 0.002814813589 | G107: 0.005629627178 | H107: =H93*1.1 -> 0.04691355981 | J107: 0.0516049158 | K107: 0.005629627178 | L107: 0.01125925436 | M107: =M93*1.1 -> 0.09382711963 | N107: 传说 | O107: =ROUND(E107*10000,0) -> 258 | P107: 28 | Q107: 56 | R107: 469 | T107: 516 | U107: 56 | V107: 113 | W107: 938
E109: 元素伤害加成 | J109: 元素攻击力
E110: 基础值 | F110: 单次强化下限 | G110: 单次强化上限 | H110: 强化总上限 | J110: 基础值 | K110: 单次强化下限 | L110: 单次强化上限 | M110: 强化总上限
D111: 普通 | E111: 0.02345677991 | F111: 0.009382711963 | G111: 0.01876542393 | H111: =H97*1.025 -> 0.09538836295 | J111: 83.51644714 | K111: 33.40657886 | L111: 66.81315771 | M111: =M97*1.025 -> 339.9641255 | N111: 普通 | O111: =ROUND(E111*10000,0) -> 235 | P111: =ROUND(F111*10000,0) -> 94 | Q111: =ROUND(G111*10000,0) -> 188 | R111: =ROUND(H111*10000,0) -> 954 | T111: =ROUND(J111,0) -> 84 | U111: 33 | V111: 67 | W111: 340
D112: 稀有 | E112: 0.04691355981 | F112: 0.009382711963 | G112: 0.01876542393 | H112: =H98*1.05 -> 0.112915466 | J112: 167.0328943 | K112: 33.40657886 | L112: 66.81315771 | M112: =M98*1.05 -> 402.4307209 | N112: 稀有 | O112: 469 | P112: 94 | Q112: 188 | R112: 1129 | T112: =ROUND(J112,0) -> 167 | U112: 33 | V112: 67 | W112: 402
D113: 史诗 | E113: 0.07037033972 | F113: 0.009382711963 | G113: 0.01876542393 | H113: =H99*1.075 -> 0.133133573 | J113: 250.5493414 | K113: 33.40657886 | L113: 66.81315771 | M113: =M99*1.075 -> 474.4880541 | N113: 史诗 | O113: 704 | P113: 94 | Q113: 188 | R113: 1331 | T113: =ROUND(J113,0) -> 251 | U113: 33 | V113: 67 | W113: 474
D114: 传说 | E114: 0.08600819299 | F114: 0.009382711963 | G114: 0.01876542393 | H114: =H100*1.1 -> 0.1563785327 | J114: 306.2269729 | K114: 33.40657886 | L114: 66.81315771 | M114: =M100*1.1 -> 557.3330906 | N114: 传说 | O114: 860 | P114: 94 | Q114: 188 | R114: 1564 | T114: =ROUND(J114,0) -> 306 | U114: 33 | V114: 67 | W114: 557
D116: 17 | E116: 无视防御率 | J116: 双倍增伤 | N116: 17
E117: 基础值 | F117: 单次强化下限 | G117: 单次强化上限 | H117: 强化总上限 | J117: 基础值 | K117: 单次强化下限 | L117: 单次强化上限 | M117: 强化总上限
D118: 普通 | E118: 0.007740737369 | F118: 0.003096294948 | G118: 0.006192589896 | H118: =H104*1.025 -> 0.02933192161 | J118: 0.01548147474 | K118: 0.006192589896 | L118: 0.01238517979 | M118: =M104*1.025 -> 0.05866384321 | N118: 普通 | O118: =ROUND(E118*10000,0) -> 77 | P118: 31 | Q118: 62 | R118: 293 | T118: 155 | U118: 62 | V118: 124 | W118: 587
D119: 稀有 | E119: 0.01548147474 | F119: 0.003096294948 | G119: 0.006192589896 | H119: =H105*1.05 -> 0.03556837179 | J119: 0.03096294948 | K119: 0.006192589896 | L119: 0.01238517979 | M119: =M105*1.05 -> 0.07113674359 | N119: 稀有 | O119: =ROUND(E119*10000,0) -> 155 | P119: 31 | Q119: 62 | R119: 356 | T119: 310 | U119: 62 | V119: 124 | W119: 711
D120: 史诗 | E120: 0.02322221211 | F120: 0.003096294948 | G120: 0.006192589896 | H120: =H106*1.075 -> 0.04293557728 | J120: 0.04644442422 | K120: 0.006192589896 | L120: 0.01238517979 | M120: =M106*1.075 -> 0.08587115456 | N120: 史诗 | O120: =ROUND(E120*10000,0) -> 232 | P120: 31 | Q120: 62 | R120: 429 | T120: 464 | U120: 62 | V120: 124 | W120: 859
D121: 传说 | E121: 0.02838270369 | F121: 0.003096294948 | G121: 0.006192589896 | H121: =H107*1.1 -> 0.0516049158 | J121: 0.05676540738 | K121: 0.006192589896 | L121: 0.01238517979 | M121: =M107*1.1 -> 0.1032098316 | N121: 传说 | O121: =ROUND(E121*10000,0) -> 284 | P121: 31 | Q121: 62 | R121: 516 | T121: 568 | U121: 62 | V121: 124 | W121: 1032
E123: 元素伤害加成 | J123: 元素攻击力
E124: 基础值 | F124: 单次强化下限 | G124: 单次强化上限 | H124: 强化总上限 | J124: 基础值 | K124: 单次强化下限 | L124: 单次强化上限 | M124: 强化总上限
D125: 普通 | E125: 0.0258024579 | F125: 0.01032098316 | G125: 0.02064196632 | H125: =H111*1.025 -> 0.09777307202 | J125: 91.86809186 | K125: 36.74723674 | L125: 73.49447349 | M125: =M111*1.025 -> 348.4632287 | N125: 普通 | O125: =ROUND(E125*10000,0) -> 258 | P125: =ROUND(F125*10000,0) -> 103 | Q125: =ROUND(G125*10000,0) -> 206 | R125: =ROUND(H125*10000,0) -> 978 | T125: =ROUND(J125,0) -> 92 | U125: 37 | V125: 73 | W125: 348
D126: 稀有 | E126: 0.0516049158 | F126: 0.01032098316 | G126: 0.02064196632 | H126: =H112*1.05 -> 0.1185612393 | J126: 183.7361837 | K126: 36.74723674 | L126: 73.49447349 | M126: =M112*1.05 -> 422.5522569 | N126: 稀有 | O126: 516 | P126: 103 | Q126: 206 | R126: 1186 | T126: =ROUND(J126,0) -> 184 | U126: 37 | V126: 73 | W126: 423
D127: 史诗 | E127: 0.07740737369 | F127: 0.01032098316 | G127: 0.02064196632 | H127: =H113*1.075 -> 0.1431185909 | J127: 275.6042756 | K127: 36.74723674 | L127: 73.49447349 | M127: =M113*1.075 -> 510.0746581 | N127: 史诗 | O127: 774 | P127: 103 | Q127: 206 | R127: 1431 | T127: =ROUND(J127,0) -> 276 | U127: 37 | V127: 73 | W127: 510
D128: 传说 | E128: 0.09460901229 | F128: 0.01032098316 | G128: 0.02064196632 | H128: =H114*1.1 -> 0.172016386 | J128: 336.8496701 | K128: 36.74723674 | L128: 73.49447349 | M128: =M114*1.1 -> 613.0663997 | N128: 传说 | O128: 946 | P128: 103 | Q128: 206 | R128: 1720 | T128: =ROUND(J128,0) -> 337 | U128: 37 | V128: 73 | W128: 613
D130: 18 | E130: 无视防御率 | J130: 双倍增伤 | N130: 18
E131: 基础值 | F131: 单次强化下限 | G131: 单次强化上限 | H131: 强化总上限 | J131: 基础值 | K131: 单次强化下限 | L131: 单次强化上限 | M131: 强化总上限
D132: 普通 | E132: 0.008514811106 | F132: 0.003405924443 | G132: 0.006811848885 | H132: =H118*1.025 -> 0.03006521965 | J132: 0.01702962221 | K132: 0.006811848885 | L132: 0.01362369777 | M132: =M118*1.025 -> 0.06013043929 | N132: 普通 | O132: =ROUND(E132*10000,0) -> 85 | P132: 34 | Q132: 68 | R132: 301 | T132: 170 | U132: 68 | V132: 136 | W132: 601
D133: 稀有 | E133: 0.01702962221 | F133: 0.003405924443 | G133: 0.006811848885 | H133: =H119*1.05 -> 0.03734679038 | J133: 0.03405924443 | K133: 0.006811848885 | L133: 0.01362369777 | M133: =M119*1.05 -> 0.07469358077 | N133: 稀有 | O133: =ROUND(E133*10000,0) -> 170 | P133: 34 | Q133: 68 | R133: 373 | T133: 341 | U133: 68 | V133: 136 | W133: 747
D134: 史诗 | E134: 0.02554443332 | F134: 0.003405924443 | G134: 0.006811848885 | H134: =H120*1.075 -> 0.04615574558 | J134: 0.05108886664 | K134: 0.006811848885 | L134: 0.01362369777 | M134: =M120*1.075 -> 0.09231149116 | N134: 史诗 | O134: =ROUND(E134*10000,0) -> 255 | P134: 34 | Q134: 68 | R134: 462 | T134: 511 | U134: 68 | V134: 136 | W134: 923
D135: 传说 | E135: 0.03122097406 | F135: 0.003405924443 | G135: 0.006811848885 | H135: =H121*1.1 -> 0.05676540738 | J135: 0.06244194811 | K135: 0.006811848885 | L135: 0.01362369777 | M135: =M121*1.1 -> 0.1135308148 | N135: 传说 | O135: =ROUND(E135*10000,0) -> 312 | P135: 34 | Q135: 68 | R135: 568 | T135: 624 | U135: 68 | V135: 136 | W135: 1135
E137: 元素伤害加成 | J137: 元素攻击力
E138: 基础值 | F138: 单次强化下限 | G138: 单次强化上限 | H138: 强化总上限 | J138: 基础值 | K138: 单次强化下限 | L138: 单次强化上限 | M138: 强化总上限
D139: 普通 | E139: 0.02838270369 | F139: 0.01135308148 | G139: 0.02270616295 | H139: =H125*1.025 -> 0.1002173988 | J139: 101.054901 | K139: 40.42196042 | L139: 80.84392083 | M139: =M125*1.025 -> 357.1748094 | N139: 普通 | O139: =ROUND(E139*10000,0) -> 284 | P139: =ROUND(F139*10000,0) -> 114 | Q139: =ROUND(G139*10000,0) -> 227 | R139: =ROUND(H139*10000,0) -> 1002 | T139: =ROUND(J139,0) -> 101 | U139: 40 | V139: 81 | W139: 357
D140: 稀有 | E140: 0.05676540738 | F140: 0.01135308148 | G140: 0.02270616295 | H140: =H126*1.05 -> 0.1244893013 | J140: 202.1098021 | K140: 40.42196042 | L140: 80.84392083 | M140: =M126*1.05 -> 443.6798698 | N140: 稀有 | O140: 568 | P140: 114 | Q140: 227 | R140: 1245 | T140: =ROUND(J140,0) -> 202 | U140: 40 | V140: 81 | W140: 444
D141: 史诗 | E141: 0.08514811106 | F141: 0.01135308148 | G141: 0.02270616295 | H141: =H127*1.075 -> 0.1538524853 | J141: 303.1647031 | K141: 40.42196042 | L141: 80.84392083 | M141: =M127*1.075 -> 548.3302575 | N141: 史诗 | O141: 851 | P141: 114 | Q141: 227 | R141: 1539 | T141: =ROUND(J141,0) -> 303 | U141: 40 | V141: 81 | W141: 548
D142: 传说 | E142: 0.1040699135 | F142: 0.01135308148 | G142: 0.02270616295 | H142: =H128*1.1 -> 0.1892180246 | J142: 370.5346372 | K142: 40.42196042 | L142: 80.84392083 | M142: =M128*1.1 -> 674.3730396 | N142: 传说 | O142: 1041 | P142: 114 | Q142: 227 | R142: 1892 | T142: =ROUND(J142,0) -> 371 | U142: 40 | V142: 81 | W142: 674
E144: 力敏智体各阶成长一样，无需改动
A146: 比例 | B146: 权重 | C146: 最终权重=比例*权重 | G146: 基础值 | H146: 单次强化下限 | I146: 单次强化上限 | J146: 强化总上限 | L146: 属性1 | M146: 词条强化区间 | N146: 词条属性上限
A147: 4 | B147: 10 | C147: =A147*B147 -> 40 | D147: 无视防御率1 | E147: 317012 | F147: # | G147: =AB6 -> 85 | H147: 34 | I147: 68 | J147: 301 | L147: =E147&F147&G147&F147&G147&F147&C147 -> 317012#85#85#40 | M147: =H147&F147&I147&F147&1 -> 34#68#1 | N147: =J147 -> 301
A148: 3 | B148: 10 | C148: =A148*B148 -> 30 | D148: 无视防御率2 | E148: 317012 | F148: # | G148: =AB7 -> 170 | H148: 34 | I148: 68 | J148: 373 | L148: =E148&F148&G148&F148&G148&F148&C148 -> 317012#170#170#30 | M148: =H148&F148&I148&F148&1 -> 34#68#1 | N148: =J148 -> 373
A149: 4 | B149: 10 | C149: 40 | D149: 无视防御率1 | E149: 317012 | F149: # | G149: =AB8 -> 85 | H149: 34 | I149: 68 | J149: 301 | L149: 317012#85#85#40 | M149: 34#68#1 | N149: 301
A150: 3 | B150: 10 | C150: 30 | D150: 无视防御率2 | E150: 317012 | F150: # | G150: =AB9 -> 170 | H150: 34 | I150: 68 | J150: 373 | L150: 317012#170#170#30 | M150: 34#68#1 | N150: 373
A151: 2 | B151: 10 | C151: 20 | D151: 无视防御率3 | E151: 317012 | F151: # | G151: =AB10 -> 255 | H151: 34 | I151: 68 | J151: 462 | L151: 317012#255#255#20 | M151: 34#68#1 | N151: 462
A152: 3 | B152: 10 | C152: 30 | D152: 无视防御率2 | E152: 317012 | F152: # | G152: =AB11 -> 170 | H152: 34 | I152: 68 | J152: 373 | L152: 317012#170#170#30 | M152: 34#68#1 | N152: 373
A153: 2 | B153: 10 | C153: 20 | D153: 无视防御率3 | E153: 317012 | F153: # | G153: =AB12 -> 255 | H153: 34 | I153: 68 | J153: 462 | L153: 317012#255#255#20 | M153: 34#68#1 | N153: 462
A154: 1 | B154: 10 | C154: 10 | D154: 无视防御率4 | E154: 317012 | F154: # | G154: =AB13 -> 312 | H154: 34 | I154: 68 | J154: 568 | L154: 317012#312#312#10 | M154: 34#68#1 | N154: 568
A155: 1 | B155: 10 | C155: 10 | D155: 无视防御率4 | E155: 317012 | F155: # | G155: =AB14 -> 312 | H155: 34 | I155: 68 | J155: 568 | L155: 317012#312#312#10 | M155: 34#68#1 | N155: 568
A156: 4 | B156: 10 | C156: 40 | D156: 抵抗无视防御率1 | E156: 317022 | F156: # | G156: =G147 -> 85 | H156: 34 | I156: 68 | J156: 301 | L156: 317022#85#85#40 | M156: 34#68#1 | N156: 301
A157: 3 | B157: 10 | C157: 30 | D157: 抵抗无视防御率2 | E157: 317022 | F157: # | G157: =G148 -> 170 | H157: 34 | I157: 68 | J157: 373 | L157: 317022#170#170#30 | M157: 34#68#1 | N157: 373
A158: 4 | B158: 10 | C158: 40 | D158: 抵抗无视防御率1 | E158: 317022 | F158: # | G158: =G149 -> 85 | H158: 34 | I158: 68 | J158: 301 | L158: 317022#85#85#40 | M158: 34#68#1 | N158: 301
A159: 3 | B159: 10 | C159: 30 | D159: 抵抗无视防御率2 | E159: 317022 | F159: # | G159: =G150 -> 170 | H159: 34 | I159: 68 | J159: 373 | L159: 317022#170#170#30 | M159: 34#68#1 | N159: 373
A160: 2 | B160: 10 | C160: 20 | D160: 抵抗无视防御率3 | E160: 317022 | F160: # | G160: =G151 -> 255 | H160: 34 | I160: 68 | J160: 462 | L160: 317022#255#255#20 | M160: 34#68#1 | N160: 462
A161: 3 | B161: 10 | C161: 30 | D161: 抵抗无视防御率2 | E161: 317022 | F161: # | G161: =G152 -> 170 | H161: 34 | I161: 68 | J161: 373 | L161: 317022#170#170#30 | M161: 34#68#1 | N161: 373
A162: 2 | B162: 10 | C162: 20 | D162: 抵抗无视防御率3 | E162: 317022 | F162: # | G162: =G153 -> 255 | H162: 34 | I162: 68 | J162: 462 | L162: 317022#255#255#20 | M162: 34#68#1 | N162: 462
A163: 1 | B163: 10 | C163: 10 | D163: 抵抗无视防御率4 | E163: 317022 | F163: # | G163: =G154 -> 312 | H163: 34 | I163: 68 | J163: 568 | L163: 317022#312#312#10 | M163: 34#68#1 | N163: 568
A164: 1 | B164: 10 | C164: 10 | D164: 抵抗无视防御率4 | E164: 317022 | F164: # | G164: =G155 -> 312 | H164: 34 | I164: 68 | J164: 568 | L164: 317022#312#312#10 | M164: 34#68#1 | N164: 568
A165: 4 | B165: 10 | C165: 40 | D165: 双倍增伤1 | E165: 304042 | F165: # | G165: =AG6 -> 170 | H165: 68 | I165: 136 | J165: 601 | L165: 304042#170#170#40 | M165: 68#136#1 | N165: 601
A166: 3 | B166: 10 | C166: 30 | D166: 双倍增伤2 | E166: 304042 | F166: # | G166: =AG7 -> 341 | H166: 68 | I166: 136 | J166: 747 | L166: 304042#341#341#30 | M166: 68#136#1 | N166: 747
A167: 4 | B167: 10 | C167: 40 | D167: 双倍增伤1 | E167: 304042 | F167: # | G167: =AG8 -> 170 | H167: 68 | I167: 136 | J167: 601 | L167: 304042#170#170#40 | M167: 68#136#1 | N167: 601
A168: 3 | B168: 10 | C168: 30 | D168: 双倍增伤2 | E168: 304042 | F168: # | G168: =AG9 -> 341 | H168: 68 | I168: 136 | J168: 747 | L168: 304042#341#341#30 | M168: 68#136#1 | N168: 747
A169: 2 | B169: 10 | C169: 20 | D169: 双倍增伤3 | E169: 304042 | F169: # | G169: =AG10 -> 511 | H169: 68 | I169: 136 | J169: 923 | L169: 304042#511#511#20 | M169: 68#136#1 | N169: 923
A170: 3 | B170: 10 | C170: 30 | D170: 双倍增伤2 | E170: 304042 | F170: # | G170: =AG11 -> 341 | H170: 68 | I170: 136 | J170: 747 | L170: 304042#341#341#30 | M170: 68#136#1 | N170: 747
A171: 2 | B171: 10 | C171: 20 | D171: 双倍增伤3 | E171: 304042 | F171: # | G171: =AG12 -> 511 | H171: 68 | I171: 136 | J171: 923 | L171: 304042#511#511#20 | M171: 68#136#1 | N171: 923
A172: 1 | B172: 10 | C172: 10 | D172: 双倍增伤4 | E172: 304042 | F172: # | G172: =AG13 -> 624 | H172: 68 | I172: 136 | J172: 1135 | L172: 304042#624#624#10 | M172: 68#136#1 | N172: 1135
A173: 1 | B173: 10 | C173: 10 | D173: 双倍增伤4 | E173: 304042 | F173: # | G173: =AG14 -> 624 | H173: 68 | I173: 136 | J173: 1135 | L173: 304042#624#624#10 | M173: 68#136#1 | N173: 1135
A174: 4 | B174: 10 | C174: 40 | D174: 卓越增伤1 | E174: 303042 | F174: # | G174: =G165 -> 170 | H174: =H165 -> 68 | I174: 136 | J174: 601 | L174: 303042#170#170#40 | M174: 68#136#1 | N174: 601
A175: 3 | B175: 10 | C175: 30 | D175: 卓越增伤2 | E175: 303042 | F175: # | G175: =G166 -> 341 | H175: 68 | I175: 136 | J175: 747 | L175: 303042#341#341#30 | M175: 68#136#1 | N175: 747
A176: 4 | B176: 10 | C176: 40 | D176: 卓越增伤1 | E176: 303042 | F176: # | G176: =G167 -> 170 | H176: 68 | I176: 136 | J176: 601 | L176: 303042#170#170#40 | M176: 68#136#1 | N176: 601
A177: 3 | B177: 10 | C177: 30 | D177: 卓越增伤2 | E177: 303042 | F177: # | G177: =G168 -> 341 | H177: 68 | I177: 136 | J177: 747 | L177: 303042#341#341#30 | M177: 68#136#1 | N177: 747
A178: 2 | B178: 10 | C178: 20 | D178: 卓越增伤3 | E178: 303042 | F178: # | G178: =G169 -> 511 | H178: 68 | I178: 136 | J178: 923 | L178: 303042#511#511#20 | M178: 68#136#1 | N178: 923
A179: 3 | B179: 10 | C179: 30 | D179: 卓越增伤2 | E179: 303042 | F179: # | G179: =G170 -> 341 | H179: 68 | I179: 136 | J179: 747 | L179: 303042#341#341#30 | M179: 68#136#1 | N179: 747
A180: 2 | B180: 10 | C180: 20 | D180: 卓越增伤3 | E180: 303042 | F180: # | G180: =G171 -> 511 | H180: 68 | I180: 136 | J180: 923 | L180: 303042#511#511#20 | M180: 68#136#1 | N180: 923
A181: 1 | B181: 10 | C181: 10 | D181: 卓越增伤4 | E181: 303042 | F181: # | G181: =G172 -> 624 | H181: 68 | I181: 136 | J181: 1135 | L181: 303042#624#624#10 | M181: 68#136#1 | N181: 1135
A182: 1 | B182: 10 | C182: 10 | D182: 卓越增伤4 | E182: 303042 | F182: # | G182: =G173 -> 624 | H182: 68 | I182: 136 | J182: 1135 | L182: 303042#624#624#10 | M182: 68#136#1 | N182: 1135
A183: 4 | B183: 10 | C183: 40 | D183: 幸运增伤1 | E183: 305042 | F183: # | G183: =G174 -> 170 | H183: =H174 -> 68 | I183: 136 | J183: 601 | L183: 305042#170#170#40 | M183: 68#136#1 | N183: 601
A184: 3 | B184: 10 | C184: 30 | D184: 幸运增伤2 | E184: 305042 | F184: # | G184: =G175 -> 341 | H184: 68 | I184: 136 | J184: 747 | L184: 305042#341#341#30 | M184: 68#136#1 | N184: 747
A185: 4 | B185: 10 | C185: 40 | D185: 幸运增伤1 | E185: 305042 | F185: # | G185: =G176 -> 170 | H185: 68 | I185: 136 | J185: 601 | L185: 305042#170#170#40 | M185: 68#136#1 | N185: 601
A186: 3 | B186: 10 | C186: 30 | D186: 幸运增伤2 | E186: 305042 | F186: # | G186: =G177 -> 341 | H186: 68 | I186: 136 | J186: 747 | L186: 305042#341#341#30 | M186: 68#136#1 | N186: 747
A187: 2 | B187: 10 | C187: 20 | D187: 幸运增伤3 | E187: 305042 | F187: # | G187: =G178 -> 511 | H187: 68 | I187: 136 | J187: 923 | L187: 305042#511#511#20 | M187: 68#136#1 | N187: 923
A188: 3 | B188: 10 | C188: 30 | D188: 幸运增伤2 | E188: 305042 | F188: # | G188: =G179 -> 341 | H188: 68 | I188: 136 | J188: 747 | L188: 305042#341#341#30 | M188: 68#136#1 | N188: 747
A189: 2 | B189: 10 | C189: 20 | D189: 幸运增伤3 | E189: 305042 | F189: # | G189: =G180 -> 511 | H189: 68 | I189: 136 | J189: 923 | L189: 305042#511#511#20 | M189: 68#136#1 | N189: 923
A190: 1 | B190: 10 | C190: 10 | D190: 幸运增伤4 | E190: 305042 | F190: # | G190: =G181 -> 624 | H190: 68 | I190: 136 | J190: 1135 | L190: 305042#624#624#10 | M190: 68#136#1 | N190: 1135
A191: 1 | B191: 10 | C191: 10 | D191: 幸运增伤4 | E191: 305042 | F191: # | G191: =G182 -> 624 | H191: 68 | I191: 136 | J191: 1135 | L191: 305042#624#624#10 | M191: 68#136#1 | N191: 1135
A192: 4 | B192: 10 | C192: 40 | D192: 双倍减免1 | E192: 304062 | F192: # | G192: =G183 -> 170 | H192: 68 | I192: 136 | J192: 601 | L192: 304062#170#170#40 | M192: 68#136#1 | N192: 601
A193: 3 | B193: 10 | C193: 30 | D193: 双倍减免2 | E193: 304062 | F193: # | G193: =G184 -> 341 | H193: 68 | I193: 136 | J193: 747 | L193: 304062#341#341#30 | M193: 68#136#1 | N193: 747
A194: 4 | B194: 10 | C194: 40 | D194: 双倍减免1 | E194: 304062 | F194: # | G194: =G185 -> 170 | H194: 68 | I194: 136 | J194: 601 | L194: 304062#170#170#40 | M194: 68#136#1 | N194: 601
A195: 3 | B195: 10 | C195: 30 | D195: 双倍减免2 | E195: 304062 | F195: # | G195: =G186 -> 341 | H195: 68 | I195: 136 | J195: 747 | L195: 304062#341#341#30 | M195: 68#136#1 | N195: 747
A196: 2 | B196: 10 | C196: 20 | D196: 双倍减免3 | E196: 304062 | F196: # | G196: =G187 -> 511 | H196: 68 | I196: 136 | J196: 923 | L196: 304062#511#511#20 | M196: 68#136#1 | N196: 923
A197: 3 | B197: 10 | C197: 30 | D197: 双倍减免2 | E197: 304062 | F197: # | G197: =G188 -> 341 | H197: 68 | I197: 136 | J197: 747 | L197: 304062#341#341#30 | M197: 68#136#1 | N197: 747
A198: 2 | B198: 10 | C198: 20 | D198: 双倍减免3 | E198: 304062 | F198: # | G198: =G189 -> 511 | H198: 68 | I198: 136 | J198: 923 | L198: 304062#511#511#20 | M198: 68#136#1 | N198: 923
A199: 1 | B199: 10 | C199: 10 | D199: 双倍减免4 | E199: 304062 | F199: # | G199: =G190 -> 624 | H199: 68 | I199: 136 | J199: 1135 | L199: 304062#624#624#10 | M199: 68#136#1 | N199: 1135
A200: 1 | B200: 10 | C200: 10 | D200: 双倍减免4 | E200: 304062 | F200: # | G200: =G191 -> 624 | H200: 68 | I200: 136 | J200: 1135 | L200: 304062#624#624#10 | M200: 68#136#1 | N200: 1135
A201: 4 | B201: 10 | C201: 40 | D201: 卓越减免1 | E201: 303062 | F201: # | G201: =G192 -> 170 | H201: 68 | I201: 136 | J201: 601 | L201: 303062#170#170#40 | M201: 68#136#1 | N201: 601
A202: 3 | B202: 10 | C202: 30 | D202: 卓越减免2 | E202: 303062 | F202: # | G202: =G193 -> 341 | H202: 68 | I202: 136 | J202: 747 | L202: 303062#341#341#30 | M202: 68#136#1 | N202: 747
A203: 4 | B203: 10 | C203: 40 | D203: 卓越减免1 | E203: 303062 | F203: # | G203: =G194 -> 170 | H203: 68 | I203: 136 | J203: 601 | L203: 303062#170#170#40 | M203: 68#136#1 | N203: 601
A204: 3 | B204: 10 | C204: 30 | D204: 卓越减免2 | E204: 303062 | F204: # | G204: =G195 -> 341 | H204: 68 | I204: 136 | J204: 747 | L204: 303062#341#341#30 | M204: 68#136#1 | N204: 747
A205: 2 | B205: 10 | C205: 20 | D205: 卓越减免3 | E205: 303062 | F205: # | G205: =G196 -> 511 | H205: 68 | I205: 136 | J205: 923 | L205: 303062#511#511#20 | M205: 68#136#1 | N205: 923
A206: 3 | B206: 10 | C206: 30 | D206: 卓越减免2 | E206: 303062 | F206: # | G206: =G197 -> 341 | H206: 68 | I206: 136 | J206: 747 | L206: 303062#341#341#30 | M206: 68#136#1 | N206: 747
A207: 2 | B207: 10 | C207: 20 | D207: 卓越减免3 | E207: 303062 | F207: # | G207: =G198 -> 511 | H207: 68 | I207: 136 | J207: 923 | L207: 303062#511#511#20 | M207: 68#136#1 | N207: 923
A208: 1 | B208: 10 | C208: 10 | D208: 卓越减免4 | E208: 303062 | F208: # | G208: =G199 -> 624 | H208: 68 | I208: 136 | J208: 1135 | L208: 303062#624#624#10 | M208: 68#136#1 | N208: 1135
A209: 1 | B209: 10 | C209: 10 | D209: 卓越减免4 | E209: 303062 | F209: # | G209: =G200 -> 624 | H209: 68 | I209: 136 | J209: 1135 | L209: 303062#624#624#10 | M209: 68#136#1 | N209: 1135
A210: 4 | B210: 10 | C210: 40 | D210: 幸运减免1 | E210: 305062 | F210: # | G210: =G201 -> 170 | H210: 68 | I210: 136 | J210: 601 | L210: 305062#170#170#40 | M210: 68#136#1 | N210: 601
A211: 3 | B211: 10 | C211: 30 | D211: 幸运减免2 | E211: 305062 | F211: # | G211: =G202 -> 341 | H211: 68 | I211: 136 | J211: 747 | L211: 305062#341#341#30 | M211: 68#136#1 | N211: 747
A212: 4 | B212: 10 | C212: =A212*B212 -> 40 | D212: 幸运减免1 | E212: 305062 | F212: # | G212: =G203 -> 170 | H212: 68 | I212: 136 | J212: 601 | L212: =E212&F212&G212&F212&G212&F212&C212 -> 305062#170#170#40 | M212: =H212&F212&I212&F212&1 -> 68#136#1 | N212: =J212 -> 601
A213: 3 | B213: 10 | C213: 30 | D213: 幸运减免2 | E213: 305062 | F213: # | G213: =G204 -> 341 | H213: 68 | I213: 136 | J213: 747 | L213: 305062#341#341#30 | M213: 68#136#1 | N213: 747
A214: 2 | B214: 10 | C214: 20 | D214: 幸运减免3 | E214: 305062 | F214: # | G214: =G205 -> 511 | H214: 68 | I214: 136 | J214: 923 | L214: 305062#511#511#20 | M214: 68#136#1 | N214: 923
A215: 3 | B215: 10 | C215: 30 | D215: 幸运减免2 | E215: 305062 | F215: # | G215: =G206 -> 341 | H215: 68 | I215: 136 | J215: 747 | L215: 305062#341#341#30 | M215: 68#136#1 | N215: 747
A216: 2 | B216: 10 | C216: 20 | D216: 幸运减免3 | E216: 305062 | F216: # | G216: =G207 -> 511 | H216: 68 | I216: 136 | J216: 923 | L216: 305062#511#511#20 | M216: 68#136#1 | N216: 923
A217: 1 | B217: 10 | C217: 10 | D217: 幸运减免4 | E217: 305062 | F217: # | G217: =G208 -> 624 | H217: 68 | I217: 136 | J217: 1135 | L217: 305062#624#624#10 | M217: 68#136#1 | N217: 1135
A218: 1 | B218: 10 | C218: 10 | D218: 幸运减免4 | E218: 305062 | F218: # | G218: =G209 -> 624 | H218: 68 | I218: 136 | J218: 1135 | L218: 305062#624#624#10 | M218: 68#136#1 | N218: 1135
A219: 4 | B219: 15 | C219: 60 | D219: PVP增伤1 | E219: 311212 | F219: # | G219: =G210 -> 170 | H219: 68 | I219: 136 | J219: 601 | L219: 311212#170#170#60 | M219: 68#136#1 | N219: 601
... 188 more rows

Sheet Sheet3
B2: 1阶 | C2: 攻击上限 | G2: 攻击下限
C3: 主属性基础值 | D3: 强化上限 | E3: 单次强化提升 | G3: 主属性基础值 | H3: 强化上限 | I3: 单次强化提升
B4: 普通 | C4: 5 | D4: 9 | E4: 1 | G4: 3 | H4: 6 | I4: 1 | L4: 200011 | M4: # | N4: 200021 | O4: # | P4: =L4&M4&G4&M4&G4&M4&I4 -> 200011#3#3#1 | Q4: =N4&O4&C4&O4&C4&O4&E4 -> 200021#5#5#1 | R4: =H4&M4&D4 -> 6#9 | S4: =_xlfn.TEXTJOIN("|",TRUE,P4:Q4) -> 200011#3#3#1|200021#5#5#1 | T4: =I4&M4&I4&M4&I4 -> 1#1#1 | U4: 200011#3#3#1|200021#5#5#1 | V4: 1#1#1 | W4: 6#9
B5: 稀有 | C5: 6 | D5: 10 | E5: 1 | G5: 4 | H5: 6 | I5: 1 | L5: 200011 | M5: # | N5: 200021 | O5: # | P5: 200011#4#4#1 | Q5: 200021#6#6#1 | R5: 6#10 | S5: 200011#4#4#1|200021#6#6#1 | T5: 1#1#1 | U5: 200011#4#4#1|200021#6#6#1 | V5: 1#1#1 | W5: 6#10
B6: 史诗 | C6: 7 | D6: 12 | E6: 1 | G6: 4 | H6: 7 | I6: 1 | L6: 200011 | M6: # | N6: 200021 | O6: # | P6: 200011#4#4#1 | Q6: 200021#7#7#1 | R6: 7#12 | S6: 200011#4#4#1|200021#7#7#1 | T6: 1#1#1 | U6: 200011#4#4#1|200021#7#7#1 | V6: 1#1#1 | W6: 7#12
B7: 传说 | C7: 8 | D7: 13 | E7: 1 | G7: 5 | H7: 8 | I7: 1 | L7: 200011 | M7: # | N7: 200021 | O7: # | P7: 200011#5#5#1 | Q7: 200021#8#8#1 | R7: 8#13 | S7: 200011#5#5#1|200021#8#8#1 | T7: 1#1#1 | U7: 200011#5#5#1|200021#8#8#1 | V7: 1#1#1 | W7: 8#13
C9: 防御 | G9: 生命值
C10: 主属性基础值 | D10: 强化上限 | E10: 单次强化提升 | G10: 主属性基础值 | H10: 强化上限 | I10: 单次强化提升
C11: 7 | D11: 13 | E11: 1 | G11: 143 | H11: 286 | I11: 10 | L11: 207011 | M11: # | P11: =L11&M11&G11&M11&G11&M11&I11 -> 207011#143#143#10 | R11: =H11 -> 286 | T11: =I11&M11&I11&M11&I11 -> 10#10#10 | U11: 207011#143#143#10 | V11: 10#10#10 | W11: 286
C12: 9 | D12: 15 | E12: 1 | G12: 184 | H12: 326 | I12: 10 | L12: 207011 | M12: # | P12: 207011#184#184#10 | R12: =H12 -> 326 | T12: 10#10#10 | U12: 207011#184#184#10 | V12: 10#10#10 | W12: 326
C13: 10 | D13: 17 | E13: 1 | G13: 224 | H13: 367 | I13: 10 | L13: 207011 | M13: # | P13: 207011#224#224#10 | R13: =H13 -> 367 | T13: 10#10#10 | U13: 207011#224#224#10 | V13: 10#10#10 | W13: 367
C14: 12 | D14: 19 | E14: 1 | G14: 265 | H14: 408 | I14: 10 | L14: 207011 | M14: # | P14: 207011#265#265#10 | R14: =H14 -> 408 | T14: 10#10#10 | U14: 207011#265#265#10 | V14: 10#10#10 | W14: 408
B16: 2阶 | C16: 攻击上限 | G16: 攻击下限
C17: 主属性基础值 | D17: 强化上限 | E17: 单次强化提升 | G17: 主属性基础值 | H17: 强化上限 | I17: 单次强化提升
B18: 普通 | C18: 11 | D18: 21 | E18: 1 | G18: 6 | H18: 13 | I18: 1 | L18: 200011 | M18: # | N18: 200021 | O18: # | P18: =L18&M18&G18&M18&G18&M18&I18 -> 200011#6#6#1 | Q18: =N18&O18&C18&O18&C18&O18&E18 -> 200021#11#11#1 | R18: =H18&M18&D18 -> 13#21 | S18: =_xlfn.TEXTJOIN("|",TRUE,P18:Q18) -> 200011#6#6#1|200021#11#11#1 | T18: =I18&M18&I18&M18&I18 -> 1#1#1 | U18: 200011#6#6#1|200021#11#11#1 | V18: 1#1#1 | W18: 13#21
B19: 稀有 | C19: 14 | D19: 24 | E19: 1 | G19: 8 | H19: 14 | I19: 1 | L19: 200011 | M19: # | N19: 200021 | O19: # | P19: 200011#8#8#1 | Q19: 200021#14#14#1 | R19: 14#24 | S19: 200011#8#8#1|200021#14#14#1 | T19: 1#1#1 | U19: 200011#8#8#1|200021#14#14#1 | V19: 1#1#1 | W19: 14#24
B20: 史诗 | C20: 17 | D20: 27 | E20: 1 | G20: 10 | H20: 16 | I20: 1 | L20: 200011 | M20: # | N20: 200021 | O20: # | P20: 200011#10#10#1 | Q20: 200021#17#17#1 | R20: 16#27 | S20: 200011#10#10#1|200021#17#17#1 | T20: 1#1#1 | U20: 200011#10#10#1|200021#17#17#1 | V20: 1#1#1 | W20: 16#27
B21: 传说 | C21: 20 | D21: 30 | E21: 1 | G21: 12 | H21: 18 | I21: 1 | L21: 200011 | M21: # | N21: 200021 | O21: # | P21: 200011#12#12#1 | Q21: 200021#20#20#1 | R21: 18#30 | S21: 200011#12#12#1|200021#20#20#1 | T21: 1#1#1 | U21: 200011#12#12#1|200021#20#20#1 | V21: 1#1#1 | W21: 18#30
C23: 防御 | G23: 生命值
C24: 主属性基础值 | D24: 强化上限 | E24: 单次强化提升 | G24: 主属性基础值 | H24: 强化上限 | I24: 单次强化提升
C25: 15 | D25: 29 | E25: 1 | G25: 230 | H25: 461 | I25: 16 | L25: 207011 | M25: # | P25: =L25&M25&G25&M25&G25&M25&I25 -> 207011#230#230#16 | R25: =H25 -> 461 | T25: =I25&M25&I25&M25&I25 -> 16#16#16 | U25: 207011#230#230#16 | V25: 16#16#16 | W25: 461
C26: 19 | D26: 34 | E26: 1 | G26: 296 | H26: 526 | I26: 16 | L26: 207011 | M26: # | P26: 207011#296#296#16 | R26: 526 | T26: 16#16#16 | U26: 207011#296#296#16 | V26: 16#16#16 | W26: 526
C27: 23 | D27: 38 | E27: 1 | G27: 362 | H27: 592 | I27: 16 | L27: 207011 | M27: # | P27: 207011#362#362#16 | R27: 592 | T27: 16#16#16 | U27: 207011#362#362#16 | V27: 16#16#16 | W27: 592
C28: 27 | D28: 42 | E28: 1 | G28: 428 | H28: 658 | I28: 16 | L28: 207011 | M28: # | P28: 207011#428#428#16 | R28: 658 | T28: 16#16#16 | U28: 207011#428#428#16 | V28: 16#16#16 | W28: 658
B30: 3阶 | C30: 攻击上限 | G30: 攻击下限
C31: 主属性基础值 | D31: 强化上限 | E31: 单次强化提升 | G31: 主属性基础值 | H31: 强化上限 | I31: 单次强化提升
B32: 普通 | C32: 16 | D32: 32 | E32: 2 | G32: 10 | H32: 20 | I32: 2 | L32: 200011 | M32: # | N32: 200021 | O32: # | P32: =L32&M32&G32&M32&G32&M32&I32 -> 200011#10#10#2 | Q32: =N32&O32&C32&O32&C32&O32&E32 -> 200021#16#16#2 | R32: =H32&M32&D32 -> 20#32 | S32: =_xlfn.TEXTJOIN("|",TRUE,P32:Q32) -> 200011#10#10#2|200021#16#16#2 | T32: =I32&M32&I32&M32&I32 -> 2#2#2 | U32: 200011#10#10#2|200021#16#16#2 | V32: 2#2#2 | W32: 20#32
B33: 稀有 | C33: 21 | D33: 37 | E33: 2 | G33: 13 | H33: 22 | I33: 2 | L33: 200011 | M33: # | N33: 200021 | O33: # | P33: 200011#13#13#2 | Q33: 200021#21#21#2 | R33: 22#37 | S33: 200011#13#13#2|200021#21#21#2 | T33: 2#2#2 | U33: 200011#13#13#2|200021#21#21#2 | V33: 2#2#2 | W33: 22#37
B34: 史诗 | C34: 25 | D34: 41 | E34: 2 | G34: 15 | H34: 25 | I34: 2 | L34: 200011 | M34: # | N34: 200021 | O34: # | P34: 200011#15#15#2 | Q34: 200021#25#25#2 | R34: 25#41 | S34: 200011#15#15#2|200021#25#25#2 | T34: 2#2#2 | U34: 200011#15#15#2|200021#25#25#2 | V34: 2#2#2 | W34: 25#41
B35: 传说 | C35: 30 | D35: 46 | E35: 2 | G35: 18 | H35: 28 | I35: 2 | L35: 200011 | M35: # | N35: 200021 | O35: # | P35: 200011#18#18#2 | Q35: 200021#30#30#2 | R35: 28#46 | S35: 200011#18#18#2|200021#30#30#2 | T35: 2#2#2 | U35: 200011#18#18#2|200021#30#30#2 | V35: 2#2#2 | W35: 28#46
C37: 防御 | G37: 生命值
C38: 主属性基础值 | D38: 强化上限 | E38: 单次强化提升 | G38: 主属性基础值 | H38: 强化上限 | I38: 单次强化提升
C39: 23 | D39: 46 | E39: 2 | G39: 318 | H39: 636 | I39: 22 | L39: 207011 | M39: # | P39: =L39&M39&G39&M39&G39&M39&I39 -> 207011#318#318#22 | R39: =H39 -> 636 | T39: =I39&M39&I39&M39&I39 -> 22#22#22 | U39: 207011#318#318#22 | V39: 22#22#22 | W39: 636
C40: 29 | D40: 52 | E40: 2 | G40: 409 | H40: 726 | I40: 22 | L40: 207011 | M40: # | P40: 207011#409#409#22 | R40: 726 | T40: 22#22#22 | U40: 207011#409#409#22 | V40: 22#22#22 | W40: 726
C41: 36 | D41: 59 | E41: 2 | G41: 499 | H41: 817 | I41: 22 | L41: 207011 | M41: # | P41: 207011#499#499#22 | R41: 817 | T41: 22#22#22 | U41: 207011#499#499#22 | V41: 22#22#22 | W41: 817
C42: 42 | D42: 65 | E42: 2 | G42: 590 | H42: 908 | I42: 22 | L42: 207011 | M42: # | P42: 207011#590#590#22 | R42: 908 | T42: 22#22#22 | U42: 207011#590#590#22 | V42: 22#22#22 | W42: 908
B44: 4阶 | C44: 攻击上限 | G44: 攻击下限
C45: 主属性基础值 | D45: 强化上限 | E45: 单次强化提升 | G45: 主属性基础值 | H45: 强化上限 | I45: 单次强化提升
B46: 普通 | C46: 22 | D46: 44 | E46: 2 | G46: 13 | H46: 27 | I46: 2 | L46: 200011 | M46: # | N46: 200021 | O46: # | P46: =L46&M46&G46&M46&G46&M46&I46 -> 200011#13#13#2 | Q46: =N46&O46&C46&O46&C46&O46&E46 -> 200021#22#22#2 | R46: =H46&M46&D46 -> 27#44 | S46: =_xlfn.TEXTJOIN("|",TRUE,P46:Q46) -> 200011#13#13#2|200021#22#22#2 | T46: =I46&M46&I46&M46&I46 -> 2#2#2 | U46: 200011#13#13#2|200021#22#22#2 | V46: 2#2#2 | W46: 27#44
B47: 稀有 | C47: 28 | D47: 50 | E47: 2 | G47: 17 | H47: 30 | I47: 2 | L47: 200011 | M47: # | N47: 200021 | O47: # | P47: 200011#17#17#2 | Q47: 200021#28#28#2 | R47: 30#50 | S47: 200011#17#17#2|200021#28#28#2 | T47: 2#2#2 | U47: 200011#17#17#2|200021#28#28#2 | V47: 2#2#2 | W47: 30#50
B48: 史诗 | C48: 35 | D48: 57 | E48: 2 | G48: 21 | H48: 34 | I48: 2 | L48: 200011 | M48: # | N48: 200021 | O48: # | P48: 200011#21#21#2 | Q48: 200021#35#35#2 | R48: 34#57 | S48: 200011#21#21#2|200021#35#35#2 | T48: 2#2#2 | U48: 200011#21#21#2|200021#35#35#2 | V48: 2#2#2 | W48: 34#57
B49: 传说 | C49: 41 | D49: 63 | E49: 2 | G49: 25 | H49: 38 | I49: 2 | L49: 200011 | M49: # | N49: 200021 | O49: # | P49: 200011#25#25#2 | Q49: 200021#41#41#2 | R49: 38#63 | S49: 200011#25#25#2|200021#41#41#2 | T49: 2#2#2 | U49: 200011#25#25#2|200021#41#41#2 | V49: 2#2#2 | W49: 38#63
C51: 防御 | G51: 生命值
C52: 主属性基础值 | D52: 强化上限 | E52: 单次强化提升 | G52: 主属性基础值 | H52: 强化上限 | I52: 单次强化提升
C53: 31 | D53: 62 | E53: 3 | G53: 405 | H53: 811 | I53: 28 | L53: 207011 | M53: # | P53: =L53&M53&G53&M53&G53&M53&I53 -> 207011#405#405#28 | R53: =H53 -> 811 | T53: =I53&M53&I53&M53&I53 -> 28#28#28 | U53: 207011#405#405#28 | V53: 28#28#28 | W53: 811
C54: 40 | D54: 70 | E54: 3 | G54: 521 | H54: 926 | I54: 28 | L54: 207011 | M54: # | P54: 207011#521#521#28 | R54: 926 | T54: 28#28#28 | U54: 207011#521#521#28 | V54: 28#28#28 | W54: 926
C55: 48 | D55: 79 | E55: 3 | G55: 637 | H55: 1042 | I55: 28 | L55: 207011 | M55: # | P55: 207011#637#637#28 | R55: 1042 | T55: 28#28#28 | U55: 207011#637#637#28 | V55: 28#28#28 | W55: 1042
C56: 57 | D56: 88 | E56: 3 | G56: 753 | H56: 1158 | I56: 28 | L56: 207011 | M56: # | P56: 207011#753#753#28 | R56: 1158 | T56: 28#28#28 | U56: 207011#753#753#28 | V56: 28#28#28 | W56: 1158
B58: 5阶 | C58: 攻击上限 | G58: 攻击下限
C59: 主属性基础值 | D59: 强化上限 | E59: 单次强化提升 | G59: 主属性基础值 | H59: 强化上限 | I59: 单次强化提升
B60: 普通 | C60: 28 | D60: 55 | E60: 2 | G60: 17 | H60: 34 | I60: 3 | L60: 200011 | M60: # | N60: 200021 | O60: # | P60: =L60&M60&G60&M60&G60&M60&I60 -> 200011#17#17#3 | Q60: =N60&O60&C60&O60&C60&O60&E60 -> 200021#28#28#2 | R60: =H60&M60&D60 -> 34#55 | S60: =_xlfn.TEXTJOIN("|",TRUE,P60:Q60) -> 200011#17#17#3|200021#28#28#2 | T60: =I60&M60&I60&M60&I60 -> 3#3#3 | U60: 200011#17#17#2|200021#28#28#2 | V60: 2#2#2 | W60: 34#55
B61: 稀有 | C61: 36 | D61: 63 | E61: 2 | G61: 22 | H61: 38 | I61: 3 | L61: 200011 | M61: # | N61: 200021 | O61: # | P61: 200011#22#22#3 | Q61: 200021#36#36#2 | R61: 38#63 | S61: 200011#22#22#3|200021#36#36#2 | T61: 3#3#3 | U61: 200011#22#22#2|200021#36#36#2 | V61: 2#2#2 | W61: 38#63
B62: 史诗 | C62: 43 | D62: 71 | E62: 2 | G62: 26 | H62: 43 | I62: 3 | L62: 200011 | M62: # | N62: 200021 | O62: # | P62: 200011#26#26#3 | Q62: 200021#43#43#2 | R62: 43#71 | S62: 200011#26#26#3|200021#43#43#2 | T62: 3#3#3 | U62: 200011#26#26#2|200021#43#43#2 | V62: 2#2#2 | W62: 43#71
B63: 传说 | C63: 51 | D63: 79 | E63: 2 | G63: 31 | H63: 48 | I63: 3 | L63: 200011 | M63: # | N63: 200021 | O63: # | P63: 200011#31#31#3 | Q63: 200021#51#51#2 | R63: 48#79 | S63: 200011#31#31#3|200021#51#51#2 | T63: 3#3#3 | U63: 200011#31#31#2|200021#51#51#2 | V63: 2#2#2 | W63: 48#79
C65: 防御 | G65: 生命值
C66: 主属性基础值 | D66: 强化上限 | E66: 单次强化提升 | G66: 主属性基础值 | H66: 强化上限 | I66: 单次强化提升
C67: 39 | D67: 78 | E67: 3 | G67: 493 | H67: 986 | I67: 33 | L67: 207011 | M67: # | P67: =L67&M67&G67&M67&G67&M67&I67 -> 207011#493#493#33 | R67: =H67 -> 986 | T67: =I67&M67&I67&M67&I67 -> 33#33#33 | U67: 207011#493#493#3 | V67: 33#33#33 | W67: 986
C68: 50 | D68: 89 | E68: 3 | G68: 634 | H68: 1126 | I68: 33 | L68: 207011 | M68: # | P68: 207011#634#634#33 | R68: 1126 | T68: 33#33#33 | U68: 207011#634#634#3 | V68: 33#33#33 | W68: 1126
C69: 61 | D69: 100 | E69: 3 | G69: 774 | H69: 1267 | I69: 33 | L69: 207011 | M69: # | P69: 207011#774#774#33 | R69: 1267 | T69: 33#33#33 | U69: 207011#774#774#3 | V69: 33#33#33 | W69: 1267
C70: 72 | D70: 111 | E70: 3 | G70: 915 | H70: 1408 | I70: 33 | L70: 207011 | M70: # | P70: 207011#915#915#33 | R70: 1408 | T70: 33#33#33 | U70: 207011#915#915#3 | V70: 33#33#33 | W70: 1408
C71: 200011
B72: 6阶 | C72: 攻击上限 | G72: 攻击下限
C73: 主属性基础值 | D73: 强化上限 | E73: 单次强化提升 | G73: 主属性基础值 | H73: 强化上限 | I73: 单次强化提升
B74: 普通 | C74: 34 | D74: 67 | E74: 3 | G74: 20 | H74: 41 | I74: 4 | L74: 200011 | M74: # | N74: 200021 | O74: # | P74: =L74&M74&G74&M74&G74&M74&I74 -> 200011#20#20#4 | Q74: =N74&O74&C74&O74&C74&O74&E74 -> 200021#34#34#3 | R74: =H74&M74&D74 -> 41#67 | S74: =_xlfn.TEXTJOIN("|",TRUE,P74:Q74) -> 200011#20#20#4|200021#34#34#3 | T74: =I74&M74&I74&M74&I74 -> 4#4#4 | U74: 200011#20#20#3|200021#34#34#3 | V74: 3#3#3 | W74: 41#67
B75: 稀有 | C75: 43 | D75: 77 | E75: 3 | G75: 26 | H75: 46 | I75: 4 | L75: 200011 | M75: # | N75: 200021 | O75: # | P75: =L75&M75&G75&M75&G75&M75&I75 -> 200011#26#26#4 | Q75: =N75&O75&C75&O75&C75&O75&E75 -> 200021#43#43#3 | R75: 46#77 | S75: =_xlfn.TEXTJOIN("|",TRUE,P75:Q75) -> 200011#26#26#4|200021#43#43#3 | T75: 4#4#4 | U75: 200011#26#26#3|200021#43#43#3 | V75: 3#3#3 | W75: 46#77
B76: 史诗 | C76: 53 | D76: 86 | E76: 3 | G76: 32 | H76: 52 | I76: 4 | L76: 200011 | M76: # | N76: 200021 | O76: # | P76: 200011#32#32#4 | Q76: 200021#53#53#3 | R76: 52#86 | S76: 200011#32#32#4|200021#53#53#3 | T76: 4#4#4 | U76: 200011#32#32#3|200021#53#53#3 | V76: 3#3#3 | W76: 52#86
B77: 传说 | C77: 62 | D77: 96 | E77: 3 | G77: 38 | H77: 58 | I77: 4 | L77: 200011 | M77: # | N77: 200021 | O77: # | P77: 200011#38#38#4 | Q77: 200021#62#62#3 | R77: 58#96 | S77: 200011#38#38#4|200021#62#62#3 | T77: 4#4#4 | U77: 200011#38#38#3|200021#62#62#3 | V77: 3#3#3 | W77: 58#96
C79: 防御 | G79: 生命值
C80: 主属性基础值 | D80: 强化上限 | E80: 单次强化提升 | G80: 主属性基础值 | H80: 强化上限 | I80: 单次强化提升
C81: 47 | D81: 94 | E81: 4 | G81: 580 | H81: 1161 | I81: 39 | L81: 207011 | M81: # | P81: =L81&M81&G81&M81&G81&M81&I81 -> 207011#580#580#39 | R81: =H81 -> 1161 | T81: =I81&M81&I81&M81&I81 -> 39#39#39 | U81: 207011#580#580#4 | V81: 39#39#39 | W81: 1161
C82: 60 | D82: 107 | E82: 4 | G82: 746 | H82: 1326 | I82: 39 | L82: 207011 | M82: # | P82: 207011#746#746#39 | R82: 1326 | T82: 39#39#39 | U82: 207011#746#746#4 | V82: 39#39#39 | W82: 1326
C83: 74 | D83: 121 | E83: 4 | G83: 912 | H83: 1492 | I83: 39 | L83: 207011 | M83: # | P83: 207011#912#912#39 | R83: 1492 | T83: 39#39#39 | U83: 207011#912#912#4 | V83: 39#39#39 | W83: 1492
C84: 87 | D84: 134 | E84: 4 | G84: 1078 | H84: 1658 | I84: 39 | L84: 207011 | M84: # | P84: 207011#1078#1078#39 | R84: 1658 | T84: 39#39#39 | U84: 207011#1078#1078#4 | V84: 39#39#39 | W84: 1658
B86: 7阶 | C86: 攻击上限 | G86: 攻击下限
C87: 主属性基础值 | D87: 强化上限 | E87: 单次强化提升 | G87: 主属性基础值 | H87: 强化上限 | I87: 单次强化提升
B88: 普通 | C88: 39 | D88: 78 | E88: 3 | G88: 23 | H88: 47 | I88: 3 | L88: 200011 | M88: # | N88: 200021 | O88: # | P88: =L88&M88&G88&M88&G88&M88&I88 -> 200011#23#23#3 | Q88: =N88&O88&C88&O88&C88&O88&E88 -> 200021#39#39#3 | R88: =H88&M88&D88 -> 47#78 | S88: =_xlfn.TEXTJOIN("|",TRUE,P88:Q88) -> 200011#23#23#3|200021#39#39#3 | T88: =I88&M88&I88&M88&I88 -> 3#3#3 | U88: 200011#23#23#3|200021#39#39#3 | V88: 3#3#3 | W88: 47#78
B89: 稀有 | C89: 50 | D89: 90 | E89: 3 | G89: 30 | H89: 54 | I89: 3 | L89: 200011 | M89: # | N89: 200021 | O89: # | P89: 200011#30#30#3 | Q89: 200021#50#50#3 | R89: 54#90 | S89: 200011#30#30#3|200021#50#50#3 | T89: =I89&M89&I89&M89&I89 -> 3#3#3 | U89: 200011#30#30#3|200021#50#50#3 | V89: 3#3#3 | W89: 54#90
B90: 史诗 | C90: 62 | D90: 101 | E90: 3 | G90: 37 | H90: 60 | I90: 3 | L90: 200011 | M90: # | N90: 200021 | O90: # | P90: 200011#37#37#3 | Q90: 200021#62#62#3 | R90: 60#101 | S90: 200011#37#37#3|200021#62#62#3 | T90: 3#3#3 | U90: 200011#37#37#3|200021#62#62#3 | V90: 3#3#3 | W90: 60#101
B91: 传说 | C91: 73 | D91: 112 | E91: 3 | G91: 44 | H91: 67 | I91: 3 | L91: 200011 | M91: # | N91: 200021 | O91: # | P91: 200011#44#44#3 | Q91: 200021#73#73#3 | R91: 67#112 | S91: 200011#44#44#3|200021#73#73#3 | T91: 3#3#3 | U91: 200011#44#44#3|200021#73#73#3 | V91: 3#3#3 | W91: 67#112
C93: 防御 | G93: 生命值
C94: 主属性基础值 | D94: 强化上限 | E94: 单次强化提升 | G94: 主属性基础值 | H94: 强化上限 | I94: 单次强化提升
C95: 55 | D95: 110 | E95: 4 | G95: 668 | H95: 1336 | I95: 45 | L95: 207011 | M95: # | P95: =L95&M95&G95&M95&G95&M95&I95 -> 207011#668#668#45 | R95: =H95 -> 1336 | T95: =I95&M95&I95&M95&I95 -> 45#45#45 | U95: 207011#668#668#45 | V95: 45#45#45 | W95: 1336
C96: 71 | D96: 126 | E96: 4 | G96: 859 | H96: 1526 | I96: 45 | L96: 207011 | M96: # | P96: 207011#859#859#45 | R96: 1526 | T96: 45#45#45 | U96: 207011#859#859#45 | V96: 45#45#45 | W96: 1526
C97: 86 | D97: 141 | E97: 4 | G97: 1049 | H97: 1717 | I97: 45 | L97: 207011 | M97: # | P97: 207011#1049#1049#45 | R97: 1717 | T97: 45#45#45 | U97: 207011#1049#1049#45 | V97: 45#45#45 | W97: 1717
C98: 102 | D98: 157 | E98: 4 | G98: 1240 | H98: 1908 | I98: 45 | L98: 207011 | M98: # | P98: 207011#1240#1240#45 | R98: 1908 | T98: 45#45#45 | U98: 207011#1240#1240#45 | V98: 45#45#45 | W98: 1908
B100: 8阶 | C100: 攻击上限 | G100: 攻击下限
C101: 主属性基础值 | D101: 强化上限 | E101: 单次强化提升 | G101: 主属性基础值 | H101: 强化上限 | I101: 单次强化提升
B102: 普通 | C102: 45 | D102: 90 | E102: 3 | G102: 27 | H102: 54 | I102: 3 | L102: 200011 | M102: # | N102: 200021 | O102: # | P102: =L102&M102&G102&M102&G102&M102&I102 -> 200011#27#27#3 | Q102: =N102&O102&C102&O102&C102&O102&E102 -> 200021#45#45#3 | R102: =H102&M102&D102 -> 54#90 | S102: =_xlfn.TEXTJOIN("|",TRUE,P102:Q102) -> 200011#27#27#3|200021#45#45#3 | T102: =I102&M102&I102&M102&I102 -> 3#3#3 | U102: 200011#27#27#3|200021#45#45#3 | V102: 3#3#3 | W102: 54#90
B103: 稀有 | C103: 58 | D103: 103 | E103: 3 | G103: 35 | H103: 62 | I103: 3 | L103: 200011 | M103: # | N103: 200021 | O103: # | P103: 200011#35#35#3 | Q103: 200021#58#58#3 | R103: 62#103 | S103: 200011#35#35#3|200021#58#58#3 | T103: 3#3#3 | U103: 200011#35#35#3|200021#58#58#3 | V103: 3#3#3 | W103: 62#103
B104: 史诗 | C104: 71 | D104: 116 | E104: 3 | G104: 42 | H104: 69 | I104: 3 | L104: 200011 | M104: # | N104: 200021 | O104: # | P104: 200011#42#42#3 | Q104: 200021#71#71#3 | R104: 69#116 | S104: 200011#42#42#3|200021#71#71#3 | T104: 3#3#3 | U104: 200011#42#42#3|200021#71#71#3 | V104: 3#3#3 | W104: 69#116
B105: 传说 | C105: 84 | D105: 129 | E105: 3 | G105: 50 | H105: 77 | I105: 3 | L105: 200011 | M105: # | N105: 200021 | O105: # | P105: 200011#50#50#3 | Q105: 200021#84#84#3 | R105: 77#129 | S105: 200011#50#50#3|200021#84#84#3 | T105: 3#3#3 | U105: 200011#50#50#3|200021#84#84#3 | V105: 3#3#3 | W105: 77#129
C107: 防御 | G107: 生命值
C108: 主属性基础值 | D108: 强化上限 | E108: 单次强化提升 | G108: 主属性基础值 | H108: 强化上限 | I108: 单次强化提升
C109: 63 | D109: 126 | E109: 5 | G109: 755 | H109: 1511 | I109: 51 | L109: 207011 | M109: # | P109: =L109&M109&G109&M109&G109&M109&I109 -> 207011#755#755#51 | R109: =H109 -> 1511 | T109: =I109&M109&I109&M109&I109 -> 51#51#51 | U109: 207011#755#755#51 | V109: 51#51#51 | W109: 1511
C110: 81 | D110: 144 | E110: 5 | G110: 971 | H110: 1726 | I110: 51 | L110: 207011 | M110: # | P110: 207011#971#971#51 | R110: 1726 | T110: 51#51#51 | U110: 207011#971#971#51 | V110: 51#51#51 | W110: 1726
C111: 99 | D111: 162 | E111: 5 | G111: 1187 | H111: 1942 | I111: 51 | L111: 207011 | M111: # | P111: 207011#1187#1187#51 | R111: 1942 | T111: 51#51#51 | U111: 207011#1187#1187#51 | V111: 51#51#51 | W111: 1942
C112: 117 | D112: 180 | E112: 5 | G112: 1403 | H112: 2158 | I112: 51 | L112: 207011 | M112: # | P112: 207011#1403#1403#51 | R112: 2158 | T112: 51#51#51 | U112: 207011#1403#1403#51 | V112: 51#51#51 | W112: 2158
B114: 9阶 | C114: 攻击上限 | G114: 攻击下限
C115: 主属性基础值 | D115: 强化上限 | E115: 单次强化提升 | G115: 主属性基础值 | H115: 强化上限 | I115: 单次强化提升
B116: 普通 | C116: 51 | D116: 102 | E116: 4 | G116: 30 | H116: 61 | I116: 4 | L116: 200011 | M116: # | N116: 200021 | O116: # | P116: =L116&M116&G116&M116&G116&M116&I116 -> 200011#30#30#4 | Q116: =N116&O116&C116&O116&C116&O116&E116 -> 200021#51#51#4 | R116: =H116&M116&D116 -> 61#102 | S116: =_xlfn.TEXTJOIN("|",TRUE,P116:Q116) -> 200011#30#30#4|200021#51#51#4 | T116: =I116&M116&I116&M116&I116 -> 4#4#4 | U116: 200011#30#30#4|200021#51#51#4 | V116: 4#4#4 | W116: 61#102
B117: 稀有 | C117: 65 | D117: 116 | E117: 4 | G117: 39 | H117: 70 | I117: 4 | L117: 200011 | M117: # | N117: 200021 | O117: # | P117: 200011#39#39#4 | Q117: 200021#65#65#4 | R117: 70#116 | S117: 200011#39#39#4|200021#65#65#4 | T117: 4#4#4 | U117: 200011#39#39#4|200021#65#65#4 | V117: 4#4#4 | W117: 70#116
B118: 史诗 | C118: 80 | D118: 131 | E118: 4 | G118: 48 | H118: 78 | I118: 4 | L118: 200011 | M118: # | N118: 200021 | O118: # | P118: 200011#48#48#4 | Q118: 200021#80#80#4 | R118: 78#131 | S118: 200011#48#48#4|200021#80#80#4 | T118: 4#4#4 | U118: 200011#48#48#4|200021#80#80#4 | V118: 4#4#4 | W118: 78#131
B119: 传说 | C119: 94 | D119: 145 | E119: 4 | G119: 57 | H119: 87 | I119: 4 | L119: 200011 | M119: # | N119: 200021 | O119: # | P119: 200011#57#57#4 | Q119: 200021#94#94#4 | R119: 87#145 | S119: 200011#57#57#4|200021#94#94#4 | T119: 4#4#4 | U119: 200011#57#57#4|200021#94#94#4 | V119: 4#4#4 | W119: 87#145
C121: 防御 | G121: 生命值
C122: 主属性基础值 | D122: 强化上限 | E122: 单次强化提升 | G122: 主属性基础值 | H122: 强化上限 | I122: 单次强化提升
C123: 71 | D123: 142 | E123: 5 | G123: 843 | H123: 1686 | I123: 57 | L123: 207011 | M123: # | P123: =L123&M123&G123&M123&G123&M123&I123 -> 207011#843#843#57 | R123: =H123 -> 1686 | T123: =I123&M123&I123&M123&I123 -> 57#57#57 | U123: 207011#843#843#57 | V123: 57#57#57 | W123: 1686
C124: 91 | D124: 162 | E124: 5 | G124: 1084 | H124: 1926 | I124: 57 | L124: 207011 | M124: # | P124: 207011#1084#1084#57 | R124: 1926 | T124: 57#57#57 | U124: 207011#1084#1084#57 | V124: 57#57#57 | W124: 1926
C125: 112 | D125: 183 | E125: 5 | G125: 1324 | H125: 2167 | I125: 57 | L125: 207011 | M125: # | P125: 207011#1324#1324#57 | R125: 2167 | T125: 57#57#57 | U125: 207011#1324#1324#57 | V125: 57#57#57 | W125: 2167
C126: 132 | D126: 203 | E126: 5 | G126: 1565 | H126: 2408 | I126: 57 | L126: 207011 | M126: # | P126: 207011#1565#1565#57 | R126: 2408 | T126: 57#57#57 | U126: 207011#1565#1565#57 | V126: 57#57#57 | W126: 2408
B127: 强化区间的值要保持一致，统一按高的来
B128: 10阶 | C128: 攻击上限 | G128: 攻击下限 | W128: 属性1 | X128: 词条强化区间 | Y128: 词条属性上限
C129: 主属性基础值 | D129: 强化上限 | E129: 单次强化提升 | G129: 主属性基础值 | H129: 强化上限 | I129: 单次强化提升 | R129: 词条属性上限 | S129: 攻击 | T129: 词条强化区间 | W129: =S130 -> 200011#33#33#4|200021#56#56#4 | X129: =T130 -> 4#4#4 | Y129: =R130 -> 67#112 | AA129: 200011#33#33#4|200021#56#56#4 | AB129: 4#4#4 | AC129: 67#112
B130: 普通 | C130: 56 | D130: 112 | E130: 4 | F130: 4 | G130: 33 | H130: 67 | I130: 2.266666667 | J130: 4 | L130: 200011 | M130: # | N130: 200021 | O130: # | P130: =L130&M130&G130&M130&G130&M130&J130 -> 200011#33#33#4 | Q130: =N130&O130&C130&O130&C130&O130&F130 -> 200021#56#56#4 | R130: =H130&M130&D130 -> 67#112 | S130: =_xlfn.TEXTJOIN("|",TRUE,P130:Q130) -> 200011#33#33#4|200021#56#56#4 | T130: =J130&M130&J130&M130&J130 -> 4#4#4 | W130: =S131 -> 200011#43#43#4|200021#72#72#4 | X130: =T131 -> 4#4#4 | Y130: =R131 -> 77#128 | AA130: 200011#43#43#4|200021#72#72#4 | AB130: 4#4#4 | AC130: 77#128
B131: 稀有 | C131: 72 | D131: 128 | E131: 4 | F131: 4 | G131: 43 | H131: 77 | I131: 2.266666667 | J131: 4 | L131: 200011 | M131: # | N131: 200021 | O131: # | P131: 200011#43#43#4 | Q131: 200021#72#72#4 | R131: 77#128 | S131: 200011#43#43#4|200021#72#72#4 | T131: 4#4#4 | W131: =S132 -> 200011#53#53#4|200021#88#88#4 | X131: =T132 -> 4#4#4 | Y131: =R132 -> 86#144 | AA131: 200011#53#53#4|200021#88#88#4 | AB131: 4#4#4 | AC131: 86#144
B132: 史诗 | C132: 88 | D132: 144 | E132: 4 | F132: 4 | G132: 53 | H132: 86 | I132: 2.2 | J132: 4 | L132: 200011 | M132: # | N132: 200021 | O132: # | P132: 200011#53#53#4 | Q132: 200021#88#88#4 | R132: 86#144 | S132: 200011#53#53#4|200021#88#88#4 | T132: 4#4#4 | W132: =S133 -> 200011#63#63#4|200021#103#103#4 | X132: =T133 -> 4#4#4 | Y132: =R133 -> 96#160 | AA132: 200011#63#63#4|200021#103#103#4 | AB132: 4#4#4 | AC132: 96#160
B133: 传说 | C133: 103 | D133: 160 | E133: 4 | F133: 4 | G133: 63 | H133: 96 | I133: 2.2 | J133: 4 | L133: 200011 | M133: # | N133: 200021 | O133: # | P133: 200011#63#63#4 | Q133: 200021#103#103#4 | R133: 96#160 | S133: 200011#63#63#4|200021#103#103#4 | T133: 4#4#4 | W133: =Q137 -> 206011#77#77#5 | X133: =R137 -> 5#5#1 | Y133: =D137 -> 155 | AA133: 206011#77#77#5 | AB133: 5#5#1 | AC133: 155
W134: =Q138 -> 206011#99#99#5 | X134: =R138 -> 5#5#1 | Y134: =D138 -> 177 | AA134: 206011#99#99#5 | AB134: 5#5#1 | AC134: 177
C135: 防御 | G135: 生命值 | W135: =Q139 -> 206011#122#122#5 | X135: =R139 -> 5#5#1 | Y135: =D139 -> 199 | AA135: 206011#122#122#5 | AB135: 5#5#1 | AC135: 199
C136: 主属性基础值 | D136: 强化上限 | E136: 单次强化提升 | G136: 主属性基础值 | H136: 强化上限 | I136: 单次强化提升 | P136: 生命值 | Q136: 防御 | R136: 防御区间 | T136: 生命值区间 | W136: =Q140 -> 206011#144#144#5 | X136: =R140 -> 5#5#1 | Y136: =D140 -> 221 | AA136: 206011#144#144#5 | AB136: 5#5#1 | AC136: 221
C137: 77 | D137: 155 | E137: 5.2 | F137: 5 | G137: 927 | H137: 1855 | I137: 61.86666667 | J137: 62 | L137: 207011 | M137: # | N137: 206011 | O137: # | P137: =L137&M137&G137&M137&G137&M137&J137 -> 207011#927#927#62 | Q137: =N137&O137&C137&O137&C137&O137&F137 -> 206011#77#77#5 | R137: =F137&O137&F137&O137&1 -> 5#5#1 | T137: =J137&M137&J137&M137&J137 -> 62#62#62 | W137: =P137 -> 207011#927#927#62 | X137: =T137 -> 62#62#62 | Y137: =H137 -> 1855 | AA137: 207011#927#927#62 | AB137: 62#62#62 | AC137: 1855
C138: 99 | D138: 177 | E138: 5.133333333 | F138: 5 | G138: 1192 | H138: 2119 | I138: 61.8 | J138: 62 | L138: 207011 | M138: # | N138: 206011 | O138: # | P138: =L138&M138&G138&M138&G138&M138&J138 -> 207011#1192#1192#62 | Q138: 206011#99#99#5 | R138: =F138&O138&F138&O138&1 -> 5#5#1 | T138: 62#62#62 | W138: =P138 -> 207011#1192#1192#62 | X138: =T138 -> 62#62#62 | Y138: =H138 -> 2119 | AA138: 207011#1192#1192#62 | AB138: 62#62#62 | AC138: 2119
C139: 122 | D139: 199 | E139: 5.133333333 | F139: 5 | G139: 1456 | H139: 2384 | I139: 61.86666667 | J139: 62 | L139: 207011 | M139: # | N139: 206011 | O139: # | P139: 207011#1456#1456#62 | Q139: 206011#122#122#5 | R139: =F139&O139&F139&O139&1 -> 5#5#1 | T139: 62#62#62 | W139: =P139 -> 207011#1456#1456#62 | X139: =T139 -> 62#62#62 | Y139: =H139 -> 2384 | AA139: 207011#1456#1456#62 | AB139: 62#62#62 | AC139: 2384
C140: 144 | D140: 221 | E140: 5.133333333 | F140: 5 | G140: 1722 | H140: 2649 | I140: 61.8 | J140: 62 | L140: 207011 | M140: # | N140: 206011 | O140: # | P140: 207011#1722#1722#62 | Q140: 206011#144#144#5 | R140: =F140&O140&F140&O140&1 -> 5#5#1 | T140: 62#62#62 | W140: =P140 -> 207011#1722#1722#62 | X140: =T140 -> 62#62#62 | Y140: =H140 -> 2649 | AA140: 207011#1722#1722#62 | AB140: 62#62#62 | AC140: 2649
AA141: 200011#36#36#4|200021#62#62#4 | AB141: 4#4#4 | AC141: 74#123
B142: 11阶 | C142: 攻击上限 | G142: 攻击下限 | W142: 属性1 | X142: 词条强化区间 | Y142: 词条属性上限 | AA142: 200011#47#47#4|200021#79#79#4 | AB142: 4#4#4 | AC142: 85#141
C143: 主属性基础值 | D143: 强化上限 | E143: 单次强化提升 | G143: 主属性基础值 | H143: 强化上限 | I143: 单次强化提升 | R143: 词条属性上限 | S143: 攻击 | T143: 词条强化区间 | W143: =S144 -> 200011#36#36#4|200021#62#62#4 | X143: =T144 -> 4#4#4 | Y143: =R144 -> 74#123 | AA143: 200011#58#58#4|200021#97#97#4 | AB143: 4#4#4 | AC143: 95#158
B144: 普通 | C144: 62 | D144: 123 | E144: 4 | F144: 4 | G144: 36 | H144: 74 | I144: 2.533333333 | J144: 4 | L144: 200011 | M144: # | N144: 200021 | O144: # | P144: =L144&M144&G144&M144&G144&M144&J144 -> 200011#36#36#4 | Q144: =N144&O144&C144&O144&C144&O144&F144 -> 200021#62#62#4 | R144: =H144&M144&D144 -> 74#123 | S144: =_xlfn.TEXTJOIN("|",TRUE,P144:Q144) -> 200011#36#36#4|200021#62#62#4 | T144: =J144&M144&J144&M144&J144 -> 4#4#4 | W144: 200011#47#47#4|200021#79#79#4 | X144: 4#4#4 | Y144: 85#141 | AA144: 200011#69#69#4|200021#113#113#4 | AB144: 4#4#4 | AC144: 106#176
B145: 稀有 | C145: 79 | D145: 141 | E145: 4 | F145: 4 | G145: 47 | H145: 85 | I145: 2.533333333 | J145: 4 | L145: 200011 | M145: # | N145: 200021 | O145: # | P145: 200011#47#47#4 | Q145: 200021#79#79#4 | R145: 85#141 | S145: 200011#47#47#4|200021#79#79#4 | T145: 4#4#4 | W145: 200011#58#58#4|200021#97#97#4 | X145: 4#4#4 | Y145: 95#158 | AA145: 206011#85#85#6 | AB145: 6#6#1 | AC145: 171
B146: 史诗 | C146: 97 | D146: 158 | E146: 4 | F146: 4 | G146: 58 | H146: 95 | I146: 2.466666667 | J146: 4 | L146: 200011 | M146: # | N146: 200021 | O146: # | P146: 200011#58#58#4 | Q146: 200021#97#97#4 | R146: 95#158 | S146: 200011#58#58#4|200021#97#97#4 | T146: 4#4#4 | W146: 200011#69#69#4|200021#113#113#4 | X146: 4#4#4 | Y146: 106#176 | AA146: 206011#109#109#6 | AB146: 6#6#1 | AC146: 195
B147: 传说 | C147: 113 | D147: 176 | E147: 4 | F147: 4 | G147: 69 | H147: 106 | I147: 2.466666667 | J147: 4 | L147: 200011 | M147: # | N147: 200021 | O147: # | P147: 200011#69#69#4 | Q147: 200021#113#113#4 | R147: 106#176 | S147: 200011#69#69#4|200021#113#113#4 | T147: 4#4#4 | W147: =Q151 -> 206011#85#85#6 | X147: =R151 -> 6#6#1 | Y147: =D151 -> 171 | AA147: 206011#134#134#6 | AB147: 6#6#1 | AC147: 219
W148: 206011#109#109#6 | X148: 6#6#1 | Y148: 195 | AA148: 206011#158#158#6 | AB148: 6#6#1 | AC148: 243
C149: 防御 | G149: 生命值 | W149: 206011#134#134#6 | X149: 6#6#1 | Y149: 219 | AA149: 207011#1020#1020#68 | AB149: 68#68#68 | AC149: 2041
C150: 主属性基础值 | D150: 强化上限 | E150: 单次强化提升 | G150: 主属性基础值 | H150: 强化上限 | I150: 单次强化提升 | P150: 生命值 | Q150: 防御 | R150: 防御区间 | T150: 生命值区间 | W150: 206011#158#158#6 | X150: 6#6#1 | Y150: 243 | AA150: 207011#1311#1311#68 | AB150: 68#68#68 | AC150: 2331
C151: 85 | D151: 171 | E151: 5.733333333 | F151: 6 | G151: 1020 | H151: 2041 | I151: 68.06666667 | J151: 68 | L151: 207011 | M151: # | N151: 206011 | O151: # | P151: =L151&M151&G151&M151&G151&M151&J151 -> 207011#1020#1020#68 | Q151: =N151&O151&C151&O151&C151&O151&F151 -> 206011#85#85#6 | R151: =F151&O151&F151&O151&1 -> 6#6#1 | T151: =J151&M151&J151&M151&J151 -> 68#68#68 | W151: =P151 -> 207011#1020#1020#68 | X151: =T151 -> 68#68#68 | Y151: =H151 -> 2041 | AA151: 207011#1602#1602#68 | AB151: 68#68#68 | AC151: 2622
C152: 109 | D152: 195 | E152: 5.666666667 | F152: 6 | G152: 1311 | H152: 2331 | I152: 68 | J152: 68 | L152: 207011 | M152: # | N152: 206011 | O152: # | P152: 207011#1311#1311#68 | Q152: 206011#109#109#6 | R152: 6#6#1 | T152: 68#68#68 | W152: 207011#1311#1311#68 | X152: 68#68#68 | Y152: 2331 | AA152: 207011#1894#1894#68 | AB152: 68#68#68 | AC152: 2914
C153: 134 | D153: 219 | E153: 5.666666667 | F153: 6 | G153: 1602 | H153: 2622 | I153: 68 | J153: 68 | L153: 207011 | M153: # | N153: 206011 | O153: # | P153: 207011#1602#1602#68 | Q153: 206011#134#134#6 | R153: 6#6#1 | T153: 68#68#68 | W153: 207011#1602#1602#68 | X153: 68#68#68 | Y153: 2622 | AA153: 200011#40#40#5|200021#68#68#5 | AB153: 5#5#5 | AC153: 81#135
C154: 158 | D154: 243 | E154: 5.666666667 | F154: 6 | G154: 1894 | H154: 2914 | I154: 68 | J154: 68 | L154: 207011 | M154: # | N154: 206011 | O154: # | P154: 207011#1894#1894#68 | Q154: 206011#158#158#6 | R154: 6#6#1 | T154: 68#68#68 | W154: 207011#1894#1894#68 | X154: 68#68#68 | Y154: 2914 | AA154: 200011#52#52#5|200021#87#87#5 | AB154: 5#5#5 | AC154: 94#155
AA155: 200011#64#64#5|200021#107#107#5 | AB155: 5#5#5 | AC155: 105#174
B156: 12阶 | C156: 攻击上限 | G156: 攻击下限 | W156: 属性1 | X156: 词条强化区间 | Y156: 词条属性上限 | AA156: 200011#76#76#5|200021#124#124#5 | AB156: 5#5#5 | AC156: 117#194
C157: 主属性基础值 | D157: 强化上限 | E157: 单次强化提升 | G157: 主属性基础值 | H157: 强化上限 | I157: 单次强化提升 | R157: 词条属性上限 | S157: 攻击 | T157: 词条强化区间 | W157: =S158 -> 200011#40#40#5|200021#68#68#5 | X157: =T158 -> 5#5#5 | Y157: =R158 -> 81#135 | AA157: 206011#94#94#6 | AB157: 6#6#1 | AC157: 188
B158: 普通 | C158: 68 | D158: 135 | E158: 4.466666667 | F158: 5 | G158: 40 | H158: 81 | I158: 2.733333333 | J158: 5 | L158: 200011 | M158: # | N158: 200021 | O158: # | P158: =L158&M158&G158&M158&G158&M158&J158 -> 200011#40#40#5 | Q158: =N158&O158&C158&O158&C158&O158&F158 -> 200021#68#68#5 | R158: =H158&M158&D158 -> 81#135 | S158: =_xlfn.TEXTJOIN("|",TRUE,P158:Q158) -> 200011#40#40#5|200021#68#68#5 | T158: =J158&M158&J158&M158&J158 -> 5#5#5 | W158: 200011#52#52#5|200021#87#87#5 | X158: 5#5#5 | Y158: 94#155 | AA158: 206011#120#120#6 | AB158: 6#6#1 | AC158: 215
B159: 稀有 | C159: 87 | D159: 155 | E159: 4.533333333 | F159: 5 | G159: 52 | H159: 94 | I159: 2.8 | J159: 5 | L159: 200011 | M159: # | N159: 200021 | O159: # | P159: 200011#52#52#5 | Q159: 200021#87#87#5 | R159: 94#155 | S159: 200011#52#52#5|200021#87#87#5 | T159: 5#5#5 | W159: 200011#64#64#5|200021#107#107#5 | X159: 5#5#5 | Y159: 105#174 | AA159: 206011#147#147#6 | AB159: 6#6#1 | AC159: 241
B160: 史诗 | C160: 107 | D160: 174 | E160: 4.466666667 | F160: 5 | G160: 64 | H160: 105 | I160: 2.733333333 | J160: 5 | L160: 200011 | M160: # | N160: 200021 | O160: # | P160: 200011#64#64#5 | Q160: 200021#107#107#5 | R160: 105#174 | S160: 200011#64#64#5|200021#107#107#5 | T160: 5#5#5 | W160: 200011#76#76#5|200021#124#124#5 | X160: 5#5#5 | Y160: 117#194 | AA160: 206011#174#174#6 | AB160: 6#6#1 | AC160: 267
B161: 传说 | C161: 124 | D161: 194 | E161: 4.666666667 | F161: 5 | G161: 76 | H161: 117 | I161: 2.733333333 | J161: 5 | L161: 200011 | M161: # | N161: 200021 | O161: # | P161: 200011#76#76#5 | Q161: 200021#124#124#5 | R161: 117#194 | S161: 200011#76#76#5|200021#124#124#5 | T161: 5#5#5 | W161: =Q165 -> 206011#94#94#6 | X161: =R165 -> 6#6#1 | Y161: =D165 -> 188 | AA161: 207011#1122#1122#75 | AB161: 75#75#75 | AC161: 2245
W162: 206011#120#120#6 | X162: 6#6#1 | Y162: 215 | AA162: 207011#1442#1442#75 | AB162: 75#75#75 | AC162: 2564
C163: 防御 | G163: 生命值 | W163: 206011#147#147#6 | X163: 6#6#1 | Y163: 241 | AA163: 207011#1762#1762#75 | AB163: 75#75#75 | AC163: 2884
C164: 主属性基础值 | D164: 强化上限 | E164: 单次强化提升 | G164: 主属性基础值 | H164: 强化上限 | I164: 单次强化提升 | P164: 生命值 | Q164: 防御 | R164: 防御区间 | T164: 生命值区间 | W164: 206011#174#174#6 | X164: 6#6#1 | Y164: 267 | AA164: 207011#2083#2083#75 | AB164: 75#75#75 | AC164: 3205
C165: 94 | D165: 188 | E165: 6.266666667 | F165: 6 | G165: 1122 | H165: 2245 | I165: 74.86666667 | J165: 75 | L165: 207011 | M165: # | N165: 206011 | O165: # | P165: =L165&M165&G165&M165&G165&M165&J165 -> 207011#1122#1122#75 | Q165: =N165&O165&C165&O165&C165&O165&F165 -> 206011#94#94#6 | R165: =F165&O165&F165&O165&1 -> 6#6#1 | T165: =J165&M165&J165&M165&J165 -> 75#75#75 | W165: =P165 -> 207011#1122#1122#75 | X165: =T165 -> 75#75#75 | Y165: =H165 -> 2245 | AA165: 200011#44#44#5|200021#75#75#5 | AB165: 5#5#5 | AC165: 89#149
C166: 120 | D166: 215 | E166: 6.266666667 | F166: 6 | G166: 1442 | H166: 2564 | I166: 74.8 | J166: 75 | L166: 207011 | M166: # | N166: 206011 | O166: # | P166: 207011#1442#1442#75 | Q166: 206011#120#120#6 | R166: 6#6#1 | T166: 75#75#75 | W166: 207011#1442#1442#75 | X166: 75#75#75 | Y166: 2564 | AA166: 200011#57#57#5|200021#96#96#5 | AB166: 5#5#5 | AC166: 103#171
C167: 147 | D167: 241 | E167: 6.266666667 | F167: 6 | G167: 1762 | H167: 2884 | I167: 74.8 | J167: 75 | L167: 207011 | M167: # | N167: 206011 | O167: # | P167: 207011#1762#1762#75 | Q167: 206011#147#147#6 | R167: 6#6#1 | T167: 75#75#75 | W167: 207011#1762#1762#75 | X167: 75#75#75 | Y167: 2884 | AA167: 200011#70#70#5|200021#118#118#5 | AB167: 5#5#5 | AC167: 116#191
C168: 174 | D168: 267 | E168: 6.2 | F168: 6 | G168: 2083 | H168: 3205 | I168: 74.8 | J168: 75 | L168: 207011 | M168: # | N168: 206011 | O168: # | P168: 207011#2083#2083#75 | Q168: 206011#174#174#6 | R168: 6#6#1 | T168: 75#75#75 | W168: 207011#2083#2083#75 | X168: 75#75#75 | Y168: 3205 | AA168: 200011#84#84#5|200021#136#136#5 | AB168: 5#5#5 | AC168: 129#213
AA169: 206011#103#103#7 | AB169: 7#7#1 | AC169: 207
B170: 13阶 | C170: 攻击上限 | G170: 攻击下限 | W170: 属性1 | X170: 词条强化区间 | Y170: 词条属性上限 | AA170: 206011#132#132#7 | AB170: 7#7#1 | AC170: 237
C171: 主属性基础值 | D171: 强化上限 | E171: 单次强化提升 | G171: 主属性基础值 | H171: 强化上限 | I171: 单次强化提升 | R171: 词条属性上限 | S171: 攻击 | T171: 词条强化区间 | W171: =S172 -> 200011#44#44#5|200021#75#75#5 | X171: =T172 -> 5#5#5 | Y171: =R172 -> 89#149 | AA171: 206011#162#162#7 | AB171: 7#7#1 | AC171: 265
B172: 普通 | C172: 75 | D172: 149 | E172: 4.933333333 | F172: 5 | G172: 44 | H172: 89 | I172: 3 | J172: 5 | L172: 200011 | M172: # | N172: 200021 | O172: # | P172: =L172&M172&G172&M172&G172&M172&J172 -> 200011#44#44#5 | Q172: =N172&O172&C172&O172&C172&O172&F172 -> 200021#75#75#5 | R172: =H172&M172&D172 -> 89#149 | S172: =_xlfn.TEXTJOIN("|",TRUE,P172:Q172) -> 200011#44#44#5|200021#75#75#5 | T172: =J172&M172&J172&M172&J172 -> 5#5#5 | W172: 200011#57#57#5|200021#96#96#5 | X172: 5#5#5 | Y172: 103#171 | AA172: 206011#191#191#7 | AB172: 7#7#1 | AC172: 294
B173: 稀有 | C173: 96 | D173: 171 | E173: 5 | F173: 5 | G173: 57 | H173: 103 | I173: 3.066666667 | J173: 5 | L173: 200011 | M173: # | N173: 200021 | O173: # | P173: 200011#57#57#5 | Q173: 200021#96#96#5 | R173: 103#171 | S173: 200011#57#57#5|200021#96#96#5 | T173: 5#5#5 | W173: 200011#70#70#5|200021#118#118#5 | X173: 5#5#5 | Y173: 116#191 | AA173: 207011#1234#1234#82 | AB173: 82#82#82 | AC173: 2470
B174: 史诗 | C174: 118 | D174: 191 | E174: 4.866666667 | F174: 5 | G174: 70 | H174: 116 | I174: 3.066666667 | J174: 5 | L174: 200011 | M174: # | N174: 200021 | O174: # | P174: 200011#70#70#5 | Q174: 200021#118#118#5 | R174: 116#191 | S174: 200011#70#70#5|200021#118#118#5 | T174: 5#5#5 | W174: 200011#84#84#5|200021#136#136#5 | X174: 5#5#5 | Y174: 129#213 | AA174: 207011#1586#1586#82 | AB174: 82#82#82 | AC174: 2820
B175: 传说 | C175: 136 | D175: 213 | E175: 5.133333333 | F175: 5 | G175: 84 | H175: 129 | I175: 3 | J175: 5 | L175: 200011 | M175: # | N175: 200021 | O175: # | P175: 200011#84#84#5 | Q175: 200021#136#136#5 | R175: 129#213 | S175: 200011#84#84#5|200021#136#136#5 | T175: 5#5#5 | W175: =Q179 -> 206011#103#103#7 | X175: =R179 -> 7#7#1 | Y175: =D179 -> 207 | AA175: 207011#1938#1938#82 | AB175: 82#82#82 | AC175: 3172
W176: 206011#132#132#7 | X176: 7#7#1 | Y176: 237 | AA176: 207011#2291#2291#82 | AB176: 82#82#82 | AC176: 3526
C177: 防御 | G177: 生命值 | W177: 206011#162#162#7 | X177: 7#7#1 | Y177: 265 | AA177: 200011#48#48#6|200021#83#83#6 | AB177: 6#6#6 | AC177: 98#164
C178: 主属性基础值 | D178: 强化上限 | E178: 单次强化提升 | G178: 主属性基础值 | H178: 强化上限 | I178: 单次强化提升 | P178: 生命值 | Q178: 防御 | R178: 防御区间 | T178: 生命值区间 | W178: 206011#191#191#7 | X178: 7#7#1 | Y178: 294 | AA178: 200011#63#63#6|200021#106#106#6 | AB178: 6#6#6 | AC178: 113#188
C179: 103 | D179: 207 | E179: 6.933333333 | F179: 7 | G179: 1234 | H179: 2470 | I179: 82.4 | J179: 82 | L179: 207011 | M179: # | N179: 206011 | O179: # | P179: =L179&M179&G179&M179&G179&M179&J179 -> 207011#1234#1234#82 | Q179: =N179&O179&C179&O179&C179&O179&F179 -> 206011#103#103#7 | R179: =F179&O179&F179&O179&1 -> 7#7#1 | T179: =J179&M179&J179&M179&J179 -> 82#82#82 | W179: =P179 -> 207011#1234#1234#82 | X179: =T179 -> 82#82#82 | Y179: =H179 -> 2470 | AA179: 200011#77#77#6|200021#130#130#6 | AB179: 6#6#6 | AC179: 128#210
C180: 132 | D180: 237 | E180: 6.866666667 | F180: 7 | G180: 1586 | H180: 2820 | I180: 82.26666667 | J180: 82 | L180: 207011 | M180: # | N180: 206011 | O180: # | P180: 207011#1586#1586#82 | Q180: 206011#132#132#7 | R180: 7#7#1 | T180: 82#82#82 | W180: 207011#1586#1586#82 | X180: 82#82#82 | Y180: 2820 | AA180: 200011#92#92#6|200021#150#150#6 | AB180: 6#6#6 | AC180: 142#234
C181: 162 | D181: 265 | E181: 6.866666667 | F181: 7 | G181: 1938 | H181: 3172 | I181: 82.26666667 | J181: 82 | L181: 207011 | M181: # | N181: 206011 | O181: # | P181: 207011#1938#1938#82 | Q181: 206011#162#162#7 | R181: 7#7#1 | T181: 82#82#82 | W181: 207011#1938#1938#82 | X181: 82#82#82 | Y181: 3172 | AA181: 206011#113#113#8 | AB181: 8#8#1 | AC181: 228
C182: 191 | D182: 294 | E182: 6.866666667 | F182: 7 | G182: 2291 | H182: 3526 | I182: 82.33333333 | J182: 82 | L182: 207011 | M182: # | N182: 206011 | O182: # | P182: 207011#2291#2291#82 | Q182: 206011#191#191#7 | R182: 7#7#1 | T182: 82#82#82 | W182: 207011#2291#2291#82 | X182: 82#82#82 | Y182: 3526 | AA182: 206011#145#145#8 | AB182: 8#8#1 | AC182: 261
AA183: 206011#178#178#8 | AB183: 8#8#1 | AC183: 292
B184: 14阶 | C184: 攻击上限 | G184: 攻击下限 | W184: 属性1 | X184: 词条强化区间 | Y184: 词条属性上限 | AA184: 206011#210#210#8 | AB184: 8#8#1 | AC184: 323
C185: 主属性基础值 | D185: 强化上限 | E185: 单次强化提升 | G185: 主属性基础值 | H185: 强化上限 | I185: 单次强化提升 | R185: 词条属性上限 | S185: 攻击 | T185: 词条强化区间 | W185: =S186 -> 200011#48#48#6|200021#83#83#6 | X185: =T186 -> 6#6#6 | Y185: =R186 -> 98#164 | AA185: 207011#1357#1357#91 | AB185: 91#91#91 | AC185: 2717
B186: 普通 | C186: 83 | D186: 164 | E186: 5.4 | F186: 6 | G186: 48 | H186: 98 | I186: 3.333333333 | J186: 6 | L186: 200011 | M186: # | N186: 200021 | O186: # | P186: =L186&M186&G186&M186&G186&M186&J186 -> 200011#48#48#6 | Q186: =N186&O186&C186&O186&C186&O186&F186 -> 200021#83#83#6 | R186: =H186&M186&D186 -> 98#164 | S186: =_xlfn.TEXTJOIN("|",TRUE,P186:Q186) -> 200011#48#48#6|200021#83#83#6 | T186: =J186&M186&J186&M186&J186 -> 6#6#6 | W186: 200011#63#63#6|200021#106#106#6 | X186: 6#6#6 | Y186: 113#188 | AA186: 207011#1745#1745#90 | AB186: 90#90#90 | AC186: 3102
B187: 稀有 | C187: 106 | D187: 188 | E187: 5.466666667 | F187: 6 | G187: 63 | H187: 113 | I187: 3.333333333 | J187: 6 | L187: 200011 | M187: # | N187: 200021 | O187: # | P187: 200011#63#63#6 | Q187: 200021#106#106#6 | R187: 113#188 | S187: 200011#63#63#6|200021#106#106#6 | T187: =J187&M187&J187&M187&J187 -> 6#6#6 | W187: 200011#77#77#6|200021#130#130#6 | X187: 6#6#6 | Y187: 128#210 | AA187: 207011#2132#2132#90 | AB187: 90#90#90 | AC187: 3489
B188: 史诗 | C188: 130 | D188: 210 | E188: 5.333333333 | F188: 6 | G188: 77 | H188: 128 | I188: 3.4 | J188: 6 | L188: 200011 | M188: # | N188: 200021 | O188: # | P188: 200011#77#77#6 | Q188: 200021#130#130#6 | R188: 128#210 | S188: 200011#77#77#6|200021#130#130#6 | T188: 6#6#6 | W188: 200011#92#92#6|200021#150#150#6 | X188: 6#6#6 | Y188: 142#234 | AA188: 207011#2520#2520#91 | AB188: 91#91#91 | AC188: 3879
B189: 传说 | C189: 150 | D189: 234 | E189: 5.6 | F189: 6 | G189: 92 | H189: 142 | I189: 3.333333333 | J189: 6 | L189: 200011 | M189: # | N189: 200021 | O189: # | P189: 200011#92#92#6 | Q189: 200021#150#150#6 | R189: 142#234 | S189: 200011#92#92#6|200021#150#150#6 | T189: 6#6#6 | W189: =Q193 -> 206011#113#113#8 | X189: =R193 -> 8#8#1 | Y189: =D193 -> 228 | AA189: 200011#53#53#6|200021#91#91#6 | AB189: 6#6#6 | AC189: 108#180
W190: 206011#145#145#8 | X190: 8#8#1 | Y190: 261 | AA190: 200011#69#69#6|200021#117#117#6 | AB190: 6#6#6 | AC190: 124#207
C191: 防御 | G191: 生命值 | W191: 206011#178#178#8 | X191: 8#8#1 | Y191: 292 | AA191: 200011#85#85#6|200021#143#143#6 | AB191: 6#6#6 | AC191: 141#231
C192: 主属性基础值 | D192: 强化上限 | E192: 单次强化提升 | G192: 主属性基础值 | H192: 强化上限 | I192: 单次强化提升 | P192: 生命值 | Q192: 防御 | R192: 防御区间 | T192: 生命值区间 | W192: 206011#210#210#8 | X192: 8#8#1 | Y192: 323 | AA192: 200011#101#101#6|200021#165#165#6 | AB192: 6#6#6 | AC192: 156#257
C193: 113 | D193: 228 | E193: 7.666666667 | F193: 8 | G193: 1357 | H193: 2717 | I193: 90.66666667 | J193: 91 | L193: 207011 | M193: # | N193: 206011 | O193: # | P193: =L193&M193&G193&M193&G193&M193&J193 -> 207011#1357#1357#91 | Q193: =N193&O193&C193&O193&C193&O193&F193 -> 206011#113#113#8 | R193: =F193&O193&F193&O193&1 -> 8#8#1 | T193: =J193&M193&J193&M193&J193 -> 91#91#91 | W193: =P193 -> 207011#1357#1357#91 | X193: =T193 -> 91#91#91 | Y193: =H193 -> 2717 | AA193: 206011#124#124#8 | AB193: 8#8#1 | AC193: 251
C194: 145 | D194: 261 | E194: 7.6 | F194: 8 | G194: 1745 | H194: 3102 | I194: 90.46666667 | J194: 90 | L194: 207011 | M194: # | N194: 206011 | O194: # | P194: 207011#1745#1745#90 | Q194: 206011#145#145#8 | R194: 8#8#1 | T194: 90#90#90 | W194: 207011#1745#1745#90 | X194: 90#90#90 | Y194: 3102 | AA194: 206011#160#160#8 | AB194: 8#8#1 | AC194: 287
C195: 178 | D195: 292 | E195: 7.6 | F195: 8 | G195: 2132 | H195: 3489 | I195: 90.46666667 | J195: 90 | L195: 207011 | M195: # | N195: 206011 | O195: # | P195: 207011#2132#2132#90 | Q195: 206011#178#178#8 | R195: 8#8#1 | T195: 90#90#90 | W195: 207011#2132#2132#90 | X195: 90#90#90 | Y195: 3489 | AA195: 206011#196#196#8 | AB195: 8#8#1 | AC195: 321
C196: 210 | D196: 323 | E196: 7.533333333 | F196: 8 | G196: 2520 | H196: 3879 | I196: 90.6 | J196: 91 | L196: 207011 | M196: # | N196: 206011 | O196: # | P196: 207011#2520#2520#91 | Q196: 206011#210#210#8 | R196: 8#8#1 | T196: 91#91#91 | W196: 207011#2520#2520#91 | X196: 91#91#91 | Y196: 3879 | AA196: 206011#231#231#8 | AB196: 8#8#1 | AC196: 355
AA197: 207011#1493#1493#100 | AB197: 100#100#100 | AC197: 2989
B198: 15阶 | C198: 攻击上限 | G198: 攻击下限 | W198: 属性1 | X198: 词条强化区间 | Y198: 词条属性上限 | AA198: 207011#1920#1920#99 | AB198: 99#99#99 | AC198: 3412
C199: 主属性基础值 | D199: 强化上限 | E199: 单次强化提升 | G199: 主属性基础值 | H199: 强化上限 | I199: 单次强化提升 | R199: 词条属性上限 | S199: 攻击 | T199: 词条强化区间 | W199: =S200 -> 200011#53#53#6|200021#91#91#6 | X199: =T200 -> 6#6#6 | Y199: =R200 -> 108#180 | AA199: 207011#2345#2345#100 | AB199: 100#100#100 | AC199: 3838
B200: 普通 | C200: 91 | D200: 180 | E200: 5.933333333 | F200: 6 | G200: 53 | H200: 108 | I200: 3.666666667 | J200: 6 | L200: 200011 | M200: # | N200: 200021 | O200: # | P200: =L200&M200&G200&M200&G200&M200&J200 -> 200011#53#53#6 | Q200: =N200&O200&C200&O200&C200&O200&F200 -> 200021#91#91#6 | R200: =H200&M200&D200 -> 108#180 | S200: =_xlfn.TEXTJOIN("|",TRUE,P200:Q200) -> 200011#53#53#6|200021#91#91#6 | T200: =J200&M200&J200&M200&J200 -> 6#6#6 | W200: 200011#69#69#6|200021#117#117#6 | X200: 6#6#6 | Y200: 124#207 | AA200: 207011#2772#2772#100 | AB200: 100#100#100 | AC200: 4267
B201: 稀有 | C201: 117 | D201: 207 | E201: 6 | F201: 6 | G201: 69 | H201: 124 | I201: 3.666666667 | J201: 6 | L201: 200011 | M201: # | N201: 200021 | O201: # | P201: 200011#69#69#6 | Q201: 200021#117#117#6 | R201: 124#207 | S201: 200011#69#69#6|200021#117#117#6 | T201: 6#6#6 | W201: 200011#85#85#6|200021#143#143#6 | X201: 6#6#6 | Y201: 141#231 | AA201: 200011#58#58#7|200021#100#100#7 | AB201: 7#7#7 | AC201: 119#198
B202: 史诗 | C202: 143 | D202: 231 | E202: 5.866666667 | F202: 6 | G202: 85 | H202: 141 | I202: 3.733333333 | J202: 6 | L202: 200011 | M202: # | N202: 200021 | O202: # | P202: 200011#85#85#6 | Q202: 200021#143#143#6 | R202: 141#231 | S202: 200011#85#85#6|200021#143#143#6 | T202: 6#6#6 | W202: 200011#101#101#6|200021#165#165#6 | X202: 6#6#6 | Y202: 156#257 | AA202: 200011#76#76#7|200021#129#129#7 | AB202: 7#7#7 | AC202: 136#228
B203: 传说 | C203: 165 | D203: 257 | E203: 6.133333333 | F203: 6 | G203: 101 | H203: 156 | I203: 3.666666667 | J203: 6 | L203: 200011 | M203: # | N203: 200021 | O203: # | P203: 200011#101#101#6 | Q203: 200021#165#165#6 | R203: 156#257 | S203: 200011#101#101#6|200021#165#165#6 | T203: 6#6#6 | W203: =Q207 -> 206011#124#124#8 | X203: =R207 -> 8#8#1 | Y203: =D207 -> 251 | AA203: 200011#94#94#7|200021#157#157#7 | AB203: 7#7#7 | AC203: 155#254
W204: 206011#160#160#8 | X204: 8#8#1 | Y204: 287 | AA204: 200011#111#111#7|200021#182#182#7 | AB204: 7#7#7 | AC204: 172#283
C205: 防御 | G205: 生命值 | W205: 206011#196#196#8 | X205: 8#8#1 | Y205: 321 | AA205: 206011#136#136#9 | AB205: 9#9#1 | AC205: 276
C206: 主属性基础值 | D206: 强化上限 | E206: 单次强化提升 | G206: 主属性基础值 | H206: 强化上限 | I206: 单次强化提升 | P206: 生命值 | Q206: 防御 | R206: 防御区间 | T206: 生命值区间 | W206: 206011#231#231#8 | X206: 8#8#1 | Y206: 355 | AA206: 206011#176#176#9 | AB206: 9#9#1 | AC206: 316
C207: 124 | D207: 251 | E207: 8.466666667 | F207: 8 | G207: 1493 | H207: 2989 | I207: 99.73333333 | J207: 100 | L207: 207011 | M207: # | N207: 206011 | O207: # | P207: =L207&M207&G207&M207&G207&M207&J207 -> 207011#1493#1493#100 | Q207: =N207&O207&C207&O207&C207&O207&F207 -> 206011#124#124#8 | R207: =F207&O207&F207&O207&1 -> 8#8#1 | T207: =J207&M207&J207&M207&J207 -> 100#100#100 | W207: =P207 -> 207011#1493#1493#100 | X207: =T207 -> 100#100#100 | Y207: =H207 -> 2989 | AA207: 206011#216#216#9 | AB207: 9#9#1 | AC207: 353
C208: 160 | D208: 287 | E208: 8.333333333 | F208: 8 | G208: 1920 | H208: 3412 | I208: 99.46666667 | J208: 99 | L208: 207011 | M208: # | N208: 206011 | O208: # | P208: 207011#1920#1920#99 | Q208: 206011#160#160#8 | R208: 8#8#1 | T208: 99#99#99 | W208: 207011#1920#1920#99 | X208: 99#99#99 | Y208: 3412 | AA208: 206011#254#254#9 | AB208: 9#9#1 | AC208: 391
C209: 196 | D209: 321 | E209: 8.333333333 | F209: 8 | G209: 2345 | H209: 3838 | I209: 99.53333333 | J209: 100 | L209: 207011 | M209: # | N209: 206011 | O209: # | P209: 207011#2345#2345#100 | Q209: 206011#196#196#8 | R209: 8#8#1 | T209: 100#100#100 | W209: 207011#2345#2345#100 | X209: 100#100#100 | Y209: 3838 | AA209: 207011#1642#1642#110 | AB209: 110#110#110 | AC209: 3288
C210: 231 | D210: 355 | E210: 8.266666667 | F210: 8 | G210: 2772 | H210: 4267 | I210: 99.66666667 | J210: 100 | L210: 207011 | M210: # | N210: 206011 | O210: # | P210: 207011#2772#2772#100 | Q210: 206011#231#231#8 | R210: 8#8#1 | T210: 100#100#100 | W210: 207011#2772#2772#100 | X210: 100#100#100 | Y210: 4267 | AA210: 207011#2112#2112#109 | AB210: 109#109#109 | AC210: 3753
AA211: 207011#2580#2580#109 | AB211: 109#109#109 | AC211: 4222
B212: 16阶 | C212: 攻击上限 | G212: 攻击下限 | W212: 属性1 | X212: 词条强化区间 | Y212: 词条属性上限 | AA212: 207011#3049#3049#110 | AB212: 110#110#110 | AC212: 4694
C213: 主属性基础值 | D213: 强化上限 | E213: 单次强化提升 | G213: 主属性基础值 | H213: 强化上限 | I213: 单次强化提升 | R213: 词条属性上限 | S213: 攻击 | T213: 词条强化区间 | W213: =S214 -> 200011#58#58#7|200021#100#100#7 | X213: =T214 -> 7#7#7 | Y213: =R214 -> 119#198 | AA213: 200011#64#64#7|200021#110#110#7 | AB213: 7#7#7 | AC213: 131#218
B214: 普通 | C214: 100 | D214: 198 | E214: 6.533333333 | F214: 7 | G214: 58 | H214: 119 | I214: 4.066666667 | J214: 7 | L214: 200011 | M214: # | N214: 200021 | O214: # | P214: =L214&M214&G214&M214&G214&M214&J214 -> 200011#58#58#7 | Q214: =N214&O214&C214&O214&C214&O214&F214 -> 200021#100#100#7 | R214: =H214&M214&D214 -> 119#198 | S214: =_xlfn.TEXTJOIN("|",TRUE,P214:Q214) -> 200011#58#58#7|200021#100#100#7 | T214: =J214&M214&J214&M214&J214 -> 7#7#7 | W214: 200011#76#76#7|200021#129#129#7 | X214: 7#7#7 | Y214: 136#228 | AA214: 200011#84#84#7|200021#142#142#7 | AB214: 7#7#7 | AC214: 150#251
B215: 稀有 | C215: 129 | D215: 228 | E215: 6.6 | F215: 7 | G215: 76 | H215: 136 | I215: 4 | J215: 7 | L215: 200011 | M215: # | N215: 200021 | O215: # | P215: 200011#76#76#7 | Q215: 200021#129#129#7 | R215: 136#228 | S215: 200011#76#76#7|200021#129#129#7 | T215: 7#7#7 | W215: 200011#94#94#7|200021#157#157#7 | X215: 7#7#7 | Y215: 155#254 | AA215: 200011#103#103#7|200021#173#173#7 | AB215: 7#7#7 | AC215: 171#279
B216: 史诗 | C216: 157 | D216: 254 | E216: 6.466666667 | F216: 7 | G216: 94 | H216: 155 | I216: 4.066666667 | J216: 7 | L216: 200011 | M216: # | N216: 200021 | O216: # | P216: 200011#94#94#7 | Q216: 200021#157#157#7 | R216: 155#254 | S216: 200011#94#94#7|200021#157#157#7 | T216: 7#7#7 | W216: 200011#111#111#7|200021#182#182#7 | X216: 7#7#7 | Y216: 172#283 | AA216: 200011#122#122#7|200021#200#200#7 | AB216: 7#7#7 | AC216: 189#311
B217: 传说 | C217: 182 | D217: 283 | E217: 6.733333333 | F217: 7 | G217: 111 | H217: 172 | I217: 4.066666667 | J217: 7 | L217: 200011 | M217: # | N217: 200021 | O217: # | P217: 200011#111#111#7 | Q217: 200021#182#182#7 | R217: 172#283 | S217: 200011#111#111#7|200021#182#182#7 | T217: 7#7#7 | W217: =Q221 -> 206011#136#136#9 | X217: =R221 -> 9#9#1 | Y217: =D221 -> 276 | AA217: 206011#150#150#10 | AB217: 10#10#1 | AC217: 304
... 34 more rows
